Workbook

Sheet Rekapitulace stavby
A1: Export Komplet | BA1: 2.0 | BB1: ZAMOK | BT1: False | BU1: False | BV1: {9b81dab9-a0d9-461d-ac19-e76ac40535c8}
BS2: 0,01 | BT2: 21
BS3: 0,01 | BT3: 15
D4: REKAPITULACE STAVBY | AS4: v --- níže se nacházejí doplnkové a pomocné údaje k sestavám --- v | BE4: Návod na vyplnění | BS4: 0,001
D5: Kód: | K5: M17/052K-R | BE5: Měnit lze pouze buňky se žlutým podbarvením! 1) na prvním listu Rekapitulace stavby vyplňte v sestavě a) Souhrnný list - údaje o Zhotoviteli (přenesou se do ostatních sestav i v jiných listech) b) Rekapitulace objektů - potřebné Ostatní náklady 2) na vybraných listech vyplňte v sestavě a) Krycí list - údaje o Zhotoviteli, pokud se liší od údajů o Zhotoviteli na Souhrnném listu (údaje se přenesou do ostatních sestav v daném listu) b) Rekapitulace rozpočtu - potřebné Ostatní náklady c) Celkové náklady za stavbu - ceny u položek - množství, pokud má žluté podbarvení - a v případě potřeby poznámku (ta je ve skrytém sloupci) | BS5: 0,01
D6: Stavba: | K6: Raná, 10185468, Žďárec u Skutče, 0,000 - 0,342, oprava koryta | BS6: 0,01
D7: KSO: | K7: 833 21 29 | AK7: CC-CZ: | AN7: 24208 | BS7: 0,01
D8: Místo: | K8: Skuteč - Žďárec u Skutče | AK8: Datum: | AN8: 8.9.2017 | BS8: 0,01
BS9: 0,01
D10: Zadavatel: | AK10: IČ: | BS10: 0,01
E11: Povodí Labe, závod Pardubice,Cihelna 135,Pardubice | AK11: DIČ: | BS11: 0,01
BS12: 0,01
D13: Uchazeč: | AK13: IČ: | AN13: Vyplň údaj | BS13: 0,01
E14: Vyplň údaj | AK14: DIČ: | AN14: Vyplň údaj | BS14: 0,01
BS15: False
D16: Projektant: | AK16: IČ: | BS16: False
E17: Multiaqua s.r.o., Veverkova 1343, Hradec Králové 2 | AK17: DIČ: | BS17: True
BS18: 0,01
D19: Zpracovatel: | AK19: IČ: | BS19: 0,01
E20: Ing. Ladislav Malý | AK20: DIČ: | BS20: True
D22: Poznámka:
E23: Předpokládaná cena projektovaného objektu stavby byla stanovena pomocí položkového rozpočtu z aktuální databáze cenové soustavy od firmy ÚRS Praha, a.s., pomocí programu KROS 4 CÚ 2017 I. Neomezený dálkový přístup k Katalogům ÚRS Praha a.s. naleznete na adrese: http:/www.cs-urs.cz.
D26: Cena bez DPH | AK26: =ROUND(AG54,2) -> 0
L28: Sazba daně | W28: Základ daně | AK28: Výše daně
D29: DPH | F29: základní | L29: 0.21 | W29: =ROUND(AZ54, 2) -> 0 | AK29: =ROUND(AV54, 2) -> 0
F30: snížená | L30: 0.15 | W30: =ROUND(BA54, 2) -> 0 | AK30: =ROUND(AW54, 2) -> 0
F31: zákl. přenesená | L31: 0.21 | W31: =ROUND(BB54, 2) -> 0 | AK31: 0
F32: sníž. přenesená | L32: 0.15 | W32: =ROUND(BC54, 2) -> 0 | AK32: 0
F33: nulová | L33: 0 | W33: =ROUND(BD54, 2) -> 0 | AK33: 0
D35: Cena s DPH | T35: v | X35: CZK | AK35: =SUM(AK26:AK33) -> 0
C42: REKAPITULACE OBJEKTŮ STAVBY A SOUPISŮ PRACÍ
C44: Kód: | L44: =K5 -> M17/052K-R
C45: Stavba: | L45: =K6 -> Raná, 10185468, Žďárec u Skutče, 0,000 - 0,342, oprava koryta
C47: Místo: | L47: =IF(K8="","",K8) -> Skuteč - Žďárec u Skutče | AI47: Datum: | AM47: =IF(AN8= "","",AN8) -> 8.9.2017
C49: Zadavatel: | L49: =IF(E11= "","",E11) -> Povodí Labe, závod Pardubice,Cihelna 135,Pardubice | AI49: Projektant: | AM49: =IF(E17="","",E17) -> Multiaqua s.r.o., Veverkova 1343, Hradec Králové 2 | AS49: Informatívní údaje z listů zakázek
C50: Uchazeč: | L50: =IF(E14= "Vyplň údaj","",E14) ->  | AI50: Zpracovatel: | AM50: =IF(E20="","",E20) -> Ing. Ladislav Malý
C52: Kód | I52: Popis | AG52: Cena bez DPH [CZK] | AN52: Cena s DPH [CZK] | AQ52: Typ | AS52: z toho Ostat. náklady [CZK] | AT52: DPH [CZK] | AU52: Normohodiny [h] | AV52: DPH základní [CZK] | AW52: DPH snížená [CZK] | AX52: DPH základní přenesená [CZK] | AY52: DPH snížená přenesená [CZK] | AZ52: Základna DPH základní | BA52: Základna DPH snížená | BB52: Základna DPH zákl. přenesená | BC52: Základna DPH sníž. přenesená | BD52: Základna DPH nulová
C54: Náklady z rozpočtů | AG54: =ROUND(AG55+AG58,2) -> 0 | AN54: =SUM(AG54,AT54) -> 0 | AS54: =ROUND(AS55+AS58,2) -> 0 | AT54: =ROUND(SUM(AV54:AW54),2) -> 0 | AU54: =ROUND(AU55+AU58,5) -> 0 | AV54: =ROUND(AZ54*L29,2) -> 0 | AW54: =ROUND(BA54*L30,2) -> 0 | AX54: =ROUND(BB54*L29,2) -> 0 | AY54: =ROUND(BC54*L30,2) -> 0 | AZ54: =ROUND(AZ55+AZ58,2) -> 0 | BA54: =ROUND(BA55+BA58,2) -> 0 | BB54: =ROUND(BB55+BB58,2) -> 0 | BC54: =ROUND(BC55+BC58,2) -> 0 | BD54: =ROUND(BD55+BD58,2) -> 0 | BS54: D | BT54: 0 | BU54: ###NOIMPORT### | BV54: IMPORT | BW54: {9b81dab9-a0d9-461d-ac19-e76ac40535c8} | BX54: {00000000-0000-0000-0000-000000000000} | CL54: 833 21 29
D55: 1 | J55: SO 01 Oprava koryta | AG55: =ROUND(SUM(AG56:AG57),2) -> 0 | AN55: =SUM(AG55,AT55) -> 0 | AQ55: STA | AS55: =ROUND(SUM(AS56:AS57),2) -> 0 | AT55: =ROUND(SUM(AV55:AW55),2) -> 0 | AU55: =ROUND(SUM(AU56:AU57),5) -> 0 | AV55: =ROUND(AZ55*L29,2) -> 0 | AW55: =ROUND(BA55*L30,2) -> 0 | AX55: =ROUND(BB55*L29,2) -> 0 | AY55: =ROUND(BC55*L30,2) -> 0 | AZ55: =ROUND(SUM(AZ56:AZ57),2) -> 0 | BA55: =ROUND(SUM(BA56:BA57),2) -> 0 | BB55: =ROUND(SUM(BB56:BB57),2) -> 0 | BC55: =ROUND(SUM(BC56:BC57),2) -> 0 | BD55: =ROUND(SUM(BD56:BD57),2) -> 0 | BS55: D | BT55: 1 | BV55: IMPORT | BW55: {6be8630e-36f3-4ef6-ba09-25c5be8342e8} | BX55: {9b81dab9-a0d9-461d-ac19-e76ac40535c8} | CL55: 833 21 29 | CM55: 2
A56: / | E56: 1 | K56: SO 01 Oprava koryta | AG56: ='1 - SO 01 Oprava koryta'!J30 -> 0 | AN56: =SUM(AG56,AT56) -> 0 | AQ56: Soupis | AS56: 0 | AT56: =ROUND(SUM(AV56:AW56),2) -> 0 | AU56: ='1 - SO 01 Oprava koryta'!P88 -> 0 | AV56: ='1 - SO 01 Oprava koryta'!J33 -> 0 | AW56: ='1 - SO 01 Oprava koryta'!J34 -> 0 | AX56: ='1 - SO 01 Oprava koryta'!J35 -> 0 | AY56: ='1 - SO 01 Oprava koryta'!J36 -> 0 | AZ56: ='1 - SO 01 Oprava koryta'!F33 -> 0 | BA56: ='1 - SO 01 Oprava koryta'!F34 -> 0 | BB56: ='1 - SO 01 Oprava koryta'!F35 -> 0 | BC56: ='1 - SO 01 Oprava koryta'!F36 -> 0 | BD56: ='1 - SO 01 Oprava koryta'!F37 -> 0 | BT56: 2 | BU56: ###NOINSERT### | BV56: IMPORT | BW56: {6be8630e-36f3-4ef6-ba09-25c5be8342e8} | BX56: {9b81dab9-a0d9-461d-ac19-e76ac40535c8} | CL56: 833 21 29 | CM56: 2
A57: / | E57: 1.1 | K57: SO 01.1 Odstranění břehových porostů | AG57: ='1.1 - SO 01.1 Odstranění ...'!J32 -> 0 | AN57: =SUM(AG57,AT57) -> 0 | AQ57: Soupis | AS57: 0 | AT57: =ROUND(SUM(AV57:AW57),2) -> 0 | AU57: ='1.1 - SO 01.1 Odstranění ...'!P88 -> 0 | AV57: ='1.1 - SO 01.1 Odstranění ...'!J35 -> 0 | AW57: ='1.1 - SO 01.1 Odstranění ...'!J36 -> 0 | AX57: ='1.1 - SO 01.1 Odstranění ...'!J37 -> 0 | AY57: ='1.1 - SO 01.1 Odstranění ...'!J38 -> 0 | AZ57: ='1.1 - SO 01.1 Odstranění ...'!F35 -> 0 | BA57: ='1.1 - SO 01.1 Odstranění ...'!F36 -> 0 | BB57: ='1.1 - SO 01.1 Odstranění ...'!F37 -> 0 | BC57: ='1.1 - SO 01.1 Odstranění ...'!F38 -> 0 | BD57: ='1.1 - SO 01.1 Odstranění ...'!F39 -> 0 | BT57: 2 | BV57: IMPORT | BW57: {a0745172-2c3b-4224-b4ff-6cdbf39ee0c2} | BX57: {6be8630e-36f3-4ef6-ba09-25c5be8342e8} | CL57: 833 21 29
A58: / | D58: 2 | J58: VON Vedlejší a ostatní náklady | AG58: ='2 - VON Vedlejší a ostatn...'!J30 -> 0 | AN58: =SUM(AG58,AT58) -> 0 | AQ58: STA | AS58: 0 | AT58: =ROUND(SUM(AV58:AW58),2) -> 0 | AU58: ='2 - VON Vedlejší a ostatn...'!P89 -> 0 | AV58: ='2 - VON Vedlejší a ostatn...'!J33 -> 0 | AW58: ='2 - VON Vedlejší a ostatn...'!J34 -> 0 | AX58: ='2 - VON Vedlejší a ostatn...'!J35 -> 0 | AY58: ='2 - VON Vedlejší a ostatn...'!J36 -> 0 | AZ58: ='2 - VON Vedlejší a ostatn...'!F33 -> 0 | BA58: ='2 - VON Vedlejší a ostatn...'!F34 -> 0 | BB58: ='2 - VON Vedlejší a ostatn...'!F35 -> 0 | BC58: ='2 - VON Vedlejší a ostatn...'!F36 -> 0 | BD58: ='2 - VON Vedlejší a ostatn...'!F37 -> 0 | BT58: 1 | BV58: IMPORT | BW58: {c9a421fb-3f1d-436c-ab4b-3315c966b4a2} | BX58: {9b81dab9-a0d9-461d-ac19-e76ac40535c8} | CL58: 833 21 29 | CM58: 2

Sheet 1 - SO 01 Oprava koryta
AT2: {6be8630e-36f3-4ef6-ba09-25c5be8342e8}
AT3: 2
D4: KRYCÍ LIST SOUPISU PRACÍ | M4: v --- níže se nacházejí doplnkové a pomocné údaje k sestavám --- v | AT4: False
D6: Stavba:
E7: ='Rekapitulace stavby'!K6 -> Raná, 10185468, Žďárec u Skutče, 0,000 - 0,342, oprava koryta
D8: Objekt:
E9: 1 - SO 01 Oprava koryta
D11: KSO: | F11: 833 21 29 | I11: CC-CZ: | J11: 24208
D12: Místo: | F12: Skuteč - Žďárec u Skutče | I12: Datum: | J12: ='Rekapitulace stavby'!AN8 -> 8.9.2017
D14: Zadavatel: | I14: IČ:
E15: Povodí Labe, závod Pardubice,Cihelna 135,Pardubice | I15: DIČ:
D17: Uchazeč: | I17: IČ: | J17: ='Rekapitulace stavby'!AN13 -> Vyplň údaj
E18: ='Rekapitulace stavby'!E14 -> Vyplň údaj | I18: DIČ: | J18: ='Rekapitulace stavby'!AN14 -> Vyplň údaj
D20: Projektant: | I20: IČ:
E21: Multiaqua s.r.o., Veverkova 1343, Hradec Králové 2 | I21: DIČ:
D23: Zpracovatel: | I23: IČ:
E24: Ing. Ladislav Malý | I24: DIČ:
D26: Poznámka:
E27: Předpokládaná cena projektovaného objektu stavby byla stanovena pomocí položkového rozpočtu z aktuální databáze cenové soustavy od firmy ÚRS Praha, a.s., pomocí programu KROS 4 CÚ 2017 I. Neomezený dálkový přístup k Katalogům ÚRS Praha a.s. naleznete na adrese: http:/www.cs-urs.cz.
D30: Cena bez DPH | J30: =ROUND(J88, 2) -> 0
F32: Základ daně | I32: Sazba daně | J32: Výše daně
D33: DPH | E33: základní | F33: =ROUND((SUM(BE88:BE359)), 2) -> 0 | I33: 0.21 | J33: =ROUND(((SUM(BE88:BE359))*I33), 2) -> 0
E34: snížená | F34: =ROUND((SUM(BF88:BF359)), 2) -> 0 | I34: 0.15 | J34: =ROUND(((SUM(BF88:BF359))*I34), 2) -> 0
E35: zákl. přenesená | F35: =ROUND((SUM(BG88:BG359)), 2) -> 0 | I35: 0.21 | J35: =0 -> 0
E36: sníž. přenesená | F36: =ROUND((SUM(BH88:BH359)), 2) -> 0 | I36: 0.15 | J36: =0 -> 0
E37: nulová | F37: =ROUND((SUM(BI88:BI359)), 2) -> 0 | I37: 0 | J37: =0 -> 0
D39: Cena s DPH | G39: v | H39: CZK | J39: =SUM(J30:J37) -> 0
C45: REKAPITULACE ČLENĚNÍ SOUPISU PRACÍ
C47: Stavba:
E48: =E7 -> Raná, 10185468, Žďárec u Skutče, 0,000 - 0,342, oprava koryta
C49: Objekt:
E50: =E9 -> 1 - SO 01 Oprava koryta
C52: Místo: | F52: =F12 -> Skuteč - Žďárec u Skutče | I52: Datum: | J52: =IF(J12="","",J12) -> 8.9.2017
C54: Zadavatel: | F54: =E15 -> Povodí Labe, závod Pardubice,Cihelna 135,Pardubice | I54: Projektant: | J54: =E21 -> Multiaqua s.r.o., Veverkova 1343, Hradec Králové 2
C55: Uchazeč: | F55: =IF(E18="","",E18) -> Vyplň údaj | I55: Zpracovatel: | J55: =E24 -> Ing. Ladislav Malý
C57: Kód dílu - Popis | J57: Cena celkem [CZK]
C59: Náklady ze soupisu prací | J59: =J88 -> 0 | AU59: -1
D60: HSV - Práce a dodávky HSV | J60: =J89 -> 0
D61: 1 - Zemní práce | J61: =J90 -> 0
D62: 3 - Svislé a kompletní konstrukce | J62: =J222 -> 0
D63: 4 - Vodorovné konstrukce | J63: =J252 -> 0
D64: 5 - Komunikace pozemní | J64: =J321 -> 0
D65: 6 - Úpravy povrchů, podlahy a osazování výplní | J65: =J328 -> 0
D66: 9 - Ostatní konstrukce a práce, bourání | J66: =J337 -> 0
D67: 997 - Přesun sutě | J67: =J347 -> 0
D68: 998 - Přesun hmot | J68: =J357 -> 0
C75: SOUPIS PRACÍ
C77: Stavba:
E78: =E7 -> Raná, 10185468, Žďárec u Skutče, 0,000 - 0,342, oprava koryta
C79: Objekt:
E80: =E9 -> 1 - SO 01 Oprava koryta
C82: Místo: | F82: =F12 -> Skuteč - Žďárec u Skutče | I82: Datum: | J82: =IF(J12="","",J12) -> 8.9.2017
C84: Zadavatel: | F84: =E15 -> Povodí Labe, závod Pardubice,Cihelna 135,Pardubice | I84: Projektant: | J84: =E21 -> Multiaqua s.r.o., Veverkova 1343, Hradec Králové 2
C85: Uchazeč: | F85: =IF(E18="","",E18) -> Vyplň údaj | I85: Zpracovatel: | J85: =E24 -> Ing. Ladislav Malý
C87: PČ | D87: Typ | E87: Kód | F87: Popis | G87: MJ | H87: Množství | I87: J.cena [CZK] | J87: Cena celkem [CZK] | K87: Cenová soustava | N87: DPH | O87: J. Nh [h] | P87: Nh celkem [h] | Q87: J. hmotnost [t] | R87: Hmotnost celkem [t] | S87: J. suť [t] | T87: Suť Celkem [t]
C88: Náklady soupisu celkem | J88: =BK88 -> 0 | P88: =P89 -> 0 | R88: =R89 -> 777.6574833 | T88: =T89 -> 38.98072 | AT88: D | AU88: -1 | BK88: =BK89 -> 0
D89: D | E89: HSV | F89: Práce a dodávky HSV | J89: =BK89 -> 0 | P89: =P90+P222+P252+P321+P328+P337+P347+P357 -> 0 | R89: =R90+R222+R252+R321+R328+R337+R347+R357 -> 777.6574833 | T89: =T90+T222+T252+T321+T328+T337+T347+T357 -> 38.98072 | AR89: 1 | AT89: D | AU89: 0 | AY89: ROZPOCET | BK89: =BK90+BK222+BK252+BK321+BK328+BK337+BK347+BK357 -> 0
D90: D | E90: 1 | F90: Zemní práce | J90: =BK90 -> 0 | P90: =SUM(P91:P221) -> 0 | R90: =SUM(R91:R221) -> 7.189684 | T90: =SUM(T91:T221) -> 16.225 | AR90: 1 | AT90: D | AU90: 1 | AY90: ROZPOCET | BK90: =SUM(BK91:BK221) -> 0
C91: 1 | D91: K | E91: 113106271 | F91: Rozebrání dlažeb vozovek pl přes 50 do 200 m2 ze zámkové dlažby s ložem z kameniva | G91: m2 | H91: 55 | J91: =ROUND(I91*H91,2) -> 0 | K91: CS ÚRS 2017 01 | N91: základní | P91: =O91*H91 -> 0 | Q91: 0 | R91: =Q91*H91 -> 0 | S91: 0.295 | T91: =S91*H91 -> 16.225 | AR91: 4 | AT91: K | AU91: 2 | AY91: ROZPOCET | BE91: =IF(N91="základní",J91,0) -> 0 | BF91: =IF(N91="snížená",J91,0) -> 0 | BG91: =IF(N91="zákl. přenesená",J91,0) -> 0 | BH91: =IF(N91="sníž. přenesená",J91,0) -> 0 | BI91: =IF(N91="nulová",J91,0) -> 0 | BJ91: 1 | BK91: =ROUND(I91*H91,2) -> 0 | BL91: 4 | BM91: -860438108
D92: PP | F92: Rozebrání dlažeb a dílců komunikací pro pěší, vozovek a ploch s přemístěním hmot na skládku na vzdálenost do 3 m nebo s naložením na dopravní prostředek vozovek a ploch, s jakoukoliv výplní spár v ploše jednotlivě přes 50 m2 do 200 m2 ze zámkové dlažby s ložem z kameniva | AT92: PP | AU92: 2
D93: VV | F93: 55,0 "u školy na LB | H93: 55 | AT93: VV | AU93: 2 | AV93: 2 | AW93: True | AX93: 1 | AY93: ROZPOCET
C94: 2 | D94: K | E94: 114203103 | F94: Rozebrání dlažeb z lomového kamene nebo betonových tvárnic do cementové malty | G94: m3 | H94: 251.225 | J94: =ROUND(I94*H94,2) -> 0 | K94: CS ÚRS 2017 01 | N94: základní | P94: =O94*H94 -> 0 | Q94: 0 | R94: =Q94*H94 -> 0 | S94: 0 | T94: =S94*H94 -> 0 | AR94: 4 | AT94: K | AU94: 2 | AY94: ROZPOCET | BE94: =IF(N94="základní",J94,0) -> 0 | BF94: =IF(N94="snížená",J94,0) -> 0 | BG94: =IF(N94="zákl. přenesená",J94,0) -> 0 | BH94: =IF(N94="sníž. přenesená",J94,0) -> 0 | BI94: =IF(N94="nulová",J94,0) -> 0 | BJ94: 1 | BK94: =ROUND(I94*H94,2) -> 0 | BL94: 4 | BM94: 693378423
D95: PP | F95: Rozebrání dlažeb nebo záhozů s naložením na dopravní prostředek dlažeb z lomového kamene nebo betonových tvárnic do cementové malty se spárami zalitými cementovou maltou | AT95: PP | AU95: 2
D96: VV | F96: podle Souhrnné technické zprávy | AT96: VV | AU96: 2 | AV96: 1 | AW96: True | AX96: 0 | AY96: ROZPOCET
D97: VV | F97: 51,5*2,0*(0,2+0,15) "dlažba naLB u školy | H97: 36.05 | AT97: VV | AU97: 2 | AV97: 2 | AW97: True | AX97: 0 | AY97: ROZPOCET
D98: VV | F98: 11,0*2,0*(0,2+0,15) " dlažba na PB u č.p. 19 | H98: 7.7 | AT98: VV | AU98: 2 | AV98: 2 | AW98: True | AX98: 0 | AY98: ROZPOCET
D99: VV | F99: 370,0*0,5*(0,2+0,15) "dlažba nad opravovanými patkami | H99: 64.75 | AT99: VV | AU99: 2 | AV99: 2 | AW99: True | AX99: 0 | AY99: ROZPOCET
D100: VV | F100: 51,5*(0,5+0,6)/2*0,6 "patka na LB u školy | H100: 16.995 | AT100: VV | AU100: 2 | AV100: 2 | AW100: True | AX100: 0 | AY100: ROZPOCET
D101: VV | F101: 11,0*(0,5+0,6)/2*0,6 " patka na PB u č.p. 19 | H101: 3.63 | AT101: VV | AU101: 2 | AV101: 2 | AW101: True | AX101: 0 | AY101: ROZPOCET
D102: VV | F102: 370,0*(0,5+0,6)/2*0,6 "úsek opravovaných patek | H102: 122.1 | AT102: VV | AU102: 2 | AV102: 2 | AW102: True | AX102: 0 | AY102: ROZPOCET
D103: VV | F103: Součet | H103: 251.225 | AT103: VV | AU103: 2 | AV103: 4 | AW103: True | AX103: 1 | AY103: ROZPOCET
C104: 3 | D104: K | E104: 114203202 | F104: Očištění lomového kamene nebo betonových tvárnic od malty | G104: m3 | H104: 155.238 | J104: =ROUND(I104*H104,2) -> 0 | K104: CS ÚRS 2017 01 | N104: základní | P104: =O104*H104 -> 0 | Q104: 0 | R104: =Q104*H104 -> 0 | S104: 0 | T104: =S104*H104 -> 0 | AR104: 4 | AT104: K | AU104: 2 | AY104: ROZPOCET | BE104: =IF(N104="základní",J104,0) -> 0 | BF104: =IF(N104="snížená",J104,0) -> 0 | BG104: =IF(N104="zákl. přenesená",J104,0) -> 0 | BH104: =IF(N104="sníž. přenesená",J104,0) -> 0 | BI104: =IF(N104="nulová",J104,0) -> 0 | BJ104: 1 | BK104: =ROUND(I104*H104,2) -> 0 | BL104: 4 | BM104: -65706293
D105: PP | F105: Očištění lomového kamene nebo betonových tvárnic získaných při rozebrání dlažeb, záhozů, rovnanin a soustřeďovacích staveb od malty | AT105: PP | AU105: 2
D106: VV | F106: podle Souhrnné technické zprávy | AT106: VV | AU106: 2 | AV106: 1 | AW106: True | AX106: 0 | AY106: ROZPOCET
D107: VV | F107: 51,5*2,0*0,2*0,3 "naLB u školy, 30% z celk.mn | H107: 6.18 | AT107: VV | AU107: 2 | AV107: 2 | AW107: True | AX107: 0 | AY107: ROZPOCET
D108: VV | F108: 11,0*2,0*0,2*0,3 " na PB u č.p. 19, 30% z celk.mn | H108: 1.32 | AT108: VV | AU108: 2 | AV108: 2 | AW108: True | AX108: 0 | AY108: ROZPOCET
D109: VV | F109: 370,0*0,5*0,2*0,3 "nad opravovanými patkami, 30% z celk.mn | H109: 11.1 | AT109: VV | AU109: 2 | AV109: 2 | AW109: True | AX109: 0 | AY109: ROZPOCET
D110: VV | F110: 51,5*(0,5+0,6)/2*0,6*0,3 "patka naLB u školy, 30% z celk.mn | H110: 5.099 | AT110: VV | AU110: 2 | AV110: 2 | AW110: True | AX110: 0 | AY110: ROZPOCET
D111: VV | F111: 11,0*(0,5+0,6)/2*0,6*0,3 " patka na PB u č.p. 19, 30% z celk.mn | H111: 1.089 | AT111: VV | AU111: 2 | AV111: 2 | AW111: True | AX111: 0 | AY111: ROZPOCET
D112: VV | F112: 370,0*(0,5+0,6)/2*0,6*0,3 "úsek opravovaných patek, 30% z celk.mn | H112: 36.63 | AT112: VV | AU112: 2 | AV112: 2 | AW112: True | AX112: 0 | AY112: ROZPOCET
D113: VV | F113: 93,82 "materiál pro doplnění dna mezi patkami | H113: 93.82 | AT113: VV | AU113: 2 | AV113: 2 | AW113: True | AX113: 0 | AY113: ROZPOCET
D114: VV | F114: Součet | H114: 155.238 | AT114: VV | AU114: 2 | AV114: 4 | AW114: True | AX114: 1 | AY114: ROZPOCET
C115: 4 | D115: K | E115: 114203301 | F115: Třídění lomového kamene nebo betonových tvárnic podle druhu, velikosti nebo tvaru | G115: m3 | H115: 204.725 | J115: =ROUND(I115*H115,2) -> 0 | K115: CS ÚRS 2017 01 | N115: základní | P115: =O115*H115 -> 0 | Q115: 0 | R115: =Q115*H115 -> 0 | S115: 0 | T115: =S115*H115 -> 0 | AR115: 4 | AT115: K | AU115: 2 | AY115: ROZPOCET | BE115: =IF(N115="základní",J115,0) -> 0 | BF115: =IF(N115="snížená",J115,0) -> 0 | BG115: =IF(N115="zákl. přenesená",J115,0) -> 0 | BH115: =IF(N115="sníž. přenesená",J115,0) -> 0 | BI115: =IF(N115="nulová",J115,0) -> 0 | BJ115: 1 | BK115: =ROUND(I115*H115,2) -> 0 | BL115: 4 | BM115: -1953469886
D116: PP | F116: Třídění lomového kamene nebo betonových tvárnic získaných při rozebrání dlažeb, záhozů, rovnanin a soustřeďovacích staveb podle druhu, velikosti nebo tvaru | AT116: PP | AU116: 2
D117: VV | F117: podle Souhrnné technické zprávy | AT117: VV | AU117: 2 | AV117: 1 | AW117: True | AX117: 0 | AY117: ROZPOCET
D118: VV | F118: 51,5*2,0*0,2"naLB u školy | H118: 20.6 | AT118: VV | AU118: 2 | AV118: 2 | AW118: True | AX118: 0 | AY118: ROZPOCET
D119: VV | F119: 11,0*2,0*0,2 " na PB u č.p. 19 | H119: 4.4 | AT119: VV | AU119: 2 | AV119: 2 | AW119: True | AX119: 0 | AY119: ROZPOCET
D120: VV | F120: 370,0*0,5*0,2 "nad opravovanými patkami | H120: 37 | AT120: VV | AU120: 2 | AV120: 2 | AW120: True | AX120: 0 | AY120: ROZPOCET
D121: VV | F121: 51,5*(0,5+0,6)/2*0,6 "patka naLB u školy | H121: 16.995 | AT121: VV | AU121: 2 | AV121: 2 | AW121: True | AX121: 0 | AY121: ROZPOCET
D122: VV | F122: 11,0*(0,5+0,6)/2*0,6 " patka na PB u č.p. 19 | H122: 3.63 | AT122: VV | AU122: 2 | AV122: 2 | AW122: True | AX122: 0 | AY122: ROZPOCET
D123: VV | F123: 370,0*(0,5+0,6)/2*0,6 "úsek opravovaných patek | H123: 122.1 | AT123: VV | AU123: 2 | AV123: 2 | AW123: True | AX123: 0 | AY123: ROZPOCET
D124: VV | F124: Součet | H124: 204.725 | AT124: VV | AU124: 2 | AV124: 4 | AW124: True | AX124: 1 | AY124: ROZPOCET
C125: 5 | D125: K | E125: 114203401 | F125: Srovnání lomového kamene nebo betonových tvárnic s přemístěním do 10 m | G125: m3 | H125: 155.238 | J125: =ROUND(I125*H125,2) -> 0 | K125: CS ÚRS 2017 01 | N125: základní | P125: =O125*H125 -> 0 | Q125: 0 | R125: =Q125*H125 -> 0 | S125: 0 | T125: =S125*H125 -> 0 | AR125: 4 | AT125: K | AU125: 2 | AY125: ROZPOCET | BE125: =IF(N125="základní",J125,0) -> 0 | BF125: =IF(N125="snížená",J125,0) -> 0 | BG125: =IF(N125="zákl. přenesená",J125,0) -> 0 | BH125: =IF(N125="sníž. přenesená",J125,0) -> 0 | BI125: =IF(N125="nulová",J125,0) -> 0 | BJ125: 1 | BK125: =ROUND(I125*H125,2) -> 0 | BL125: 4 | BM125: 1286561728
D126: PP | F126: Srovnání lomového kamene nebo betonových tvárnic do měřitelných figur s přemístěním na vzdálenost do 10 m | AT126: PP | AU126: 2
D127: VV | F127: 155,238" očištěný kámen | H127: 155.238 | AT127: VV | AU127: 2 | AV127: 2 | AW127: True | AX127: 1 | AY127: ROZPOCET
C128: 6 | D128: K | E128: 115001106 | F128: Převedení vody potrubím DN do 900 | G128: m | H128: 342 | J128: =ROUND(I128*H128,2) -> 0 | K128: CS ÚRS 2017 01 | N128: základní | P128: =O128*H128 -> 0 | Q128: 0.02102 | R128: =Q128*H128 -> 7.18884 | S128: 0 | T128: =S128*H128 -> 0 | AR128: 4 | AT128: K | AU128: 2 | AY128: ROZPOCET | BE128: =IF(N128="základní",J128,0) -> 0 | BF128: =IF(N128="snížená",J128,0) -> 0 | BG128: =IF(N128="zákl. přenesená",J128,0) -> 0 | BH128: =IF(N128="sníž. přenesená",J128,0) -> 0 | BI128: =IF(N128="nulová",J128,0) -> 0 | BJ128: 1 | BK128: =ROUND(I128*H128,2) -> 0 | BL128: 4 | BM128: 1109178967
D129: PP | F129: Převedení vody potrubím průměru DN přes 600 do 900 | AT129: PP | AU129: 2
D130: VV | F130: 342,0 "přes opravované úseky | H130: 342 | AT130: VV | AU130: 2 | AV130: 2 | AW130: True | AX130: 1 | AY130: ROZPOCET
C131: 7 | D131: K | E131: 115101202 | F131: Čerpání vody na dopravní výšku do 10 m průměrný přítok do 1000 l/min | G131: hod | H131: 720 | J131: =ROUND(I131*H131,2) -> 0 | K131: CS ÚRS 2017 01 | N131: základní | P131: =O131*H131 -> 0 | Q131: 0 | R131: =Q131*H131 -> 0 | S131: 0 | T131: =S131*H131 -> 0 | AR131: 4 | AT131: K | AU131: 2 | AY131: ROZPOCET | BE131: =IF(N131="základní",J131,0) -> 0 | BF131: =IF(N131="snížená",J131,0) -> 0 | BG131: =IF(N131="zákl. přenesená",J131,0) -> 0 | BH131: =IF(N131="sníž. přenesená",J131,0) -> 0 | BI131: =IF(N131="nulová",J131,0) -> 0 | BJ131: 1 | BK131: =ROUND(I131*H131,2) -> 0 | BL131: 4 | BM131: 2128345733
D132: PP | F132: Čerpání vody na dopravní výšku do 10 m s uvažovaným průměrným přítokem přes 500 do 1 000 l/min | AT132: PP | AU132: 2
D133: VV | F133: 30*24 | H133: 720 | AT133: VV | AU133: 2 | AV133: 2 | AW133: True | AX133: 1 | AY133: ROZPOCET
C134: 8 | D134: K | E134: 124203101 | F134: Vykopávky do 1000 m3 pro koryta vodotečí v hornině tř. 3 | G134: m3 | H134: 31 | J134: =ROUND(I134*H134,2) -> 0 | K134: CS ÚRS 2017 01 | N134: základní | P134: =O134*H134 -> 0 | Q134: 0 | R134: =Q134*H134 -> 0 | S134: 0 | T134: =S134*H134 -> 0 | AR134: 4 | AT134: K | AU134: 2 | AY134: ROZPOCET | BE134: =IF(N134="základní",J134,0) -> 0 | BF134: =IF(N134="snížená",J134,0) -> 0 | BG134: =IF(N134="zákl. přenesená",J134,0) -> 0 | BH134: =IF(N134="sníž. přenesená",J134,0) -> 0 | BI134: =IF(N134="nulová",J134,0) -> 0 | BJ134: 1 | BK134: =ROUND(I134*H134,2) -> 0 | BL134: 4 | BM134: 515725640
D135: PP | F135: Vykopávky pro koryta vodotečí s přehozením výkopku na vzdálenost do 3 m nebo s naložením na dopravní prostředek v hornině tř. 3 do 1 000 m3 | AT135: PP | AU135: 2
D136: VV | F136: pro štp. lože pod opravovanou dlažbu | AT136: VV | AU136: 2 | AV136: 1 | AW136: True | AX136: 0 | AY136: ROZPOCET
D137: VV | F137: podle Souhrnné technické zprávy | AT137: VV | AU137: 2 | AV137: 1 | AW137: True | AX137: 0 | AY137: ROZPOCET
D138: VV | F138: 51,5*2,0*0,1 "naLB u školy | H138: 10.3 | AT138: VV | AU138: 2 | AV138: 2 | AW138: True | AX138: 0 | AY138: ROZPOCET
D139: VV | F139: 11,0*2,0*0,1 " na PB u č.p. 19 | H139: 2.2 | AT139: VV | AU139: 2 | AV139: 2 | AW139: True | AX139: 0 | AY139: ROZPOCET
D140: VV | F140: 370,0*0,5*0,1 "nad opravovanými patkami | H140: 18.5 | AT140: VV | AU140: 2 | AV140: 2 | AW140: True | AX140: 0 | AY140: ROZPOCET
D141: VV | F141: Součet | H141: 31 | AT141: VV | AU141: 2 | AV141: 4 | AW141: True | AX141: 1 | AY141: ROZPOCET
C142: 9 | D142: K | E142: 124203109 | F142: Příplatek k vykopávkám pro koryta vodotečí v hornině tř. 3 za lepivost | G142: m3 | H142: 9.3 | J142: =ROUND(I142*H142,2) -> 0 | K142: CS ÚRS 2017 01 | N142: základní | P142: =O142*H142 -> 0 | Q142: 0 | R142: =Q142*H142 -> 0 | S142: 0 | T142: =S142*H142 -> 0 | AR142: 4 | AT142: K | AU142: 2 | AY142: ROZPOCET | BE142: =IF(N142="základní",J142,0) -> 0 | BF142: =IF(N142="snížená",J142,0) -> 0 | BG142: =IF(N142="zákl. přenesená",J142,0) -> 0 | BH142: =IF(N142="sníž. přenesená",J142,0) -> 0 | BI142: =IF(N142="nulová",J142,0) -> 0 | BJ142: 1 | BK142: =ROUND(I142*H142,2) -> 0 | BL142: 4 | BM142: 1826875553
D143: PP | F143: Vykopávky pro koryta vodotečí s přehozením výkopku na vzdálenost do 3 m nebo s naložením na dopravní prostředek v hornině tř. 3 Příplatek k cenám za lepivost horniny tř. 3 | AT143: PP | AU143: 2
D144: VV | F144: 31,0*0,3 "lepivost 30% | H144: 9.3 | AT144: VV | AU144: 2 | AV144: 2 | AW144: True | AX144: 1 | AY144: ROZPOCET
C145: 10 | D145: K | E145: 129103101 | F145: Čištění otevřených koryt vodotečí š dna do 5 m hl do 2,5 m v hornině tř. 1 a 2 | G145: m3 | H145: 99.95 | J145: =ROUND(I145*H145,2) -> 0 | K145: CS ÚRS 2017 01 | N145: základní | P145: =O145*H145 -> 0 | Q145: 0 | R145: =Q145*H145 -> 0 | S145: 0 | T145: =S145*H145 -> 0 | AR145: 4 | AT145: K | AU145: 2 | AY145: ROZPOCET | BE145: =IF(N145="základní",J145,0) -> 0 | BF145: =IF(N145="snížená",J145,0) -> 0 | BG145: =IF(N145="zákl. přenesená",J145,0) -> 0 | BH145: =IF(N145="sníž. přenesená",J145,0) -> 0 | BI145: =IF(N145="nulová",J145,0) -> 0 | BJ145: 1 | BK145: =ROUND(I145*H145,2) -> 0 | BL145: 4 | BM145: 1825604253
D146: PP | F146: Čištění otevřených koryt vodotečí s přehozením rozpojeného nánosu do 3 m nebo s naložením na dopravní prostředek při šířce původního dna do 5m a hloubce koryta do 2,5 m v horninách tř. 1 a 2 | AT146: PP | AU146: 2
D147: VV | F147: 83,9 "příloha D.1.1.b.2 , sedimenty v rostlém stavu | H147: 83.9 | AT147: VV | AU147: 2 | AV147: 2 | AW147: True | AX147: 0 | AY147: ROZPOCET
D148: VV | F148: 99,95-83,9 " dotvarování svahů koryta, příl. D.1.1.b.2 | H148: 16.05 | AT148: VV | AU148: 2 | AV148: 2 | AW148: True | AX148: 0 | AY148: ROZPOCET
D149: VV | F149: Součet | H149: 99.95 | AT149: VV | AU149: 2 | AV149: 4 | AW149: True | AX149: 1 | AY149: ROZPOCET
C150: 11 | D150: K | E150: 132201101 | F150: Hloubení rýh š do 600 mm v hornině tř. 3 objemu do 100 m3 | G150: m3 | H150: 27.24 | J150: =ROUND(I150*H150,2) -> 0 | K150: CS ÚRS 2017 01 | N150: základní | P150: =O150*H150 -> 0 | Q150: 0 | R150: =Q150*H150 -> 0 | S150: 0 | T150: =S150*H150 -> 0 | AR150: 4 | AT150: K | AU150: 2 | AY150: ROZPOCET | BE150: =IF(N150="základní",J150,0) -> 0 | BF150: =IF(N150="snížená",J150,0) -> 0 | BG150: =IF(N150="zákl. přenesená",J150,0) -> 0 | BH150: =IF(N150="sníž. přenesená",J150,0) -> 0 | BI150: =IF(N150="nulová",J150,0) -> 0 | BJ150: 1 | BK150: =ROUND(I150*H150,2) -> 0 | BL150: 4 | BM150: -1584558616
D151: PP | F151: Hloubení zapažených i nezapažených rýh šířky do 600 mm s urovnáním dna do předepsaného profilu a spádu v hornině tř. 3 do 100 m3 | AT151: PP | AU151: 2
D152: VV | F152: pro zajišťovací prahy stupňů v km 0,063, 0,089 a 0,108 | AT152: VV | AU152: 2 | AV152: 1 | AW152: True | AX152: 0 | AY152: ROZPOCET
D153: VV | F153: 3*(4,0+2*1,0)*0,6*1,20 | H153: 12.96 | AT153: VV | AU153: 2 | AV153: 2 | AW153: True | AX153: 0 | AY153: ROZPOCET
D154: VV | F154: 3*(4,0+2*1,0)*0,4*1,0 | H154: 7.2 | AT154: VV | AU154: 2 | AV154: 2 | AW154: True | AX154: 0 | AY154: ROZPOCET
D155: VV | F155: pro zajišťovací prahy stupňě v km 0,166 | AT155: VV | AU155: 2 | AV155: 1 | AW155: True | AX155: 0 | AY155: ROZPOCET
D156: VV | F156: (4,0+2*1,0)*0,6*1,30 | H156: 4.68 | AT156: VV | AU156: 2 | AV156: 2 | AW156: True | AX156: 0 | AY156: ROZPOCET
D157: VV | F157: (4,0+2*1,0)*0,4*1,0 | H157: 2.4 | AT157: VV | AU157: 2 | AV157: 2 | AW157: True | AX157: 0 | AY157: ROZPOCET
D158: VV | F158: Součet | H158: 27.24 | AT158: VV | AU158: 2 | AV158: 4 | AW158: True | AX158: 1 | AY158: ROZPOCET
C159: 12 | D159: K | E159: 132201109 | F159: Příplatek za lepivost k hloubení rýh š do 600 mm v hornině tř. 3 | G159: m3 | H159: 8.172 | J159: =ROUND(I159*H159,2) -> 0 | K159: CS ÚRS 2017 01 | N159: základní | P159: =O159*H159 -> 0 | Q159: 0 | R159: =Q159*H159 -> 0 | S159: 0 | T159: =S159*H159 -> 0 | AR159: 4 | AT159: K | AU159: 2 | AY159: ROZPOCET | BE159: =IF(N159="základní",J159,0) -> 0 | BF159: =IF(N159="snížená",J159,0) -> 0 | BG159: =IF(N159="zákl. přenesená",J159,0) -> 0 | BH159: =IF(N159="sníž. přenesená",J159,0) -> 0 | BI159: =IF(N159="nulová",J159,0) -> 0 | BJ159: 1 | BK159: =ROUND(I159*H159,2) -> 0 | BL159: 4 | BM159: -1201296880
D160: PP | F160: Hloubení zapažených i nezapažených rýh šířky do 600 mm s urovnáním dna do předepsaného profilu a spádu v hornině tř. 3 Příplatek k cenám za lepivost horniny tř. 3 | AT160: PP | AU160: 2
D161: VV | F161: 27,24*0,3 "lepivost 30% | H161: 8.172 | AT161: VV | AU161: 2 | AV161: 2 | AW161: True | AX161: 1 | AY161: ROZPOCET
C162: 13 | D162: K | E162: 162000000R | F162: Likvidace přebytečného výkopku z horniny tř.1- 4 podle platné legislativy,položka obsahuje naložení, přemístění,složení a skládkovné | G162: m3 | H162: 145.565 | J162: =ROUND(I162*H162,2) -> 0 | N162: základní | P162: =O162*H162 -> 0 | Q162: 0 | R162: =Q162*H162 -> 0 | S162: 0 | T162: =S162*H162 -> 0 | AR162: 4 | AT162: K | AU162: 2 | AY162: ROZPOCET | BE162: =IF(N162="základní",J162,0) -> 0 | BF162: =IF(N162="snížená",J162,0) -> 0 | BG162: =IF(N162="zákl. přenesená",J162,0) -> 0 | BH162: =IF(N162="sníž. přenesená",J162,0) -> 0 | BI162: =IF(N162="nulová",J162,0) -> 0 | BJ162: 1 | BK162: =ROUND(I162*H162,2) -> 0 | BL162: 4 | BM162: 6308088
D163: PP | F163: Likvidace přebytečného výkopku z horniny tř.1- 4 podle platné legislativy,položka obsahuje naložení, přemístění,složení a skládkovné | AT163: PP | AU163: 2
D164: VV | F164: 83,90 "sedimenty v rostlém stavu | H164: 83.9 | AT164: VV | AU164: 2 | AV164: 2 | AW164: True | AX164: 0 | AY164: ROZPOCET
D165: VV | F165: 99,95-83,9 " dotvarování svahů koryta, příl. D.1.1.b.2 | H165: 16.05 | AT165: VV | AU165: 2 | AV165: 2 | AW165: True | AX165: 0 | AY165: ROZPOCET
D166: VV | F166: 31,0 "zemina z odkopávek pro lože pro dlažbu | H166: 31 | AT166: VV | AU166: 2 | AV166: 2 | AW166: True | AX166: 0 | AY166: ROZPOCET
D167: VV | F167: 27,24 "zemina z rýh | H167: 27.24 | AT167: VV | AU167: 2 | AV167: 2 | AW167: True | AX167: 0 | AY167: ROZPOCET
D168: VV | F168: -(1*0,5+4*1,0+1*1,5)"odečet zeminy pro zasypání po pařezech | H168: -6 | AT168: VV | AU168: 2 | AV168: 2 | AW168: True | AX168: 0 | AY168: ROZPOCET
D169: VV | F169: -1,0 "odečet zeminy pro doplnění výmolu | H169: -1 | AT169: VV | AU169: 2 | AV169: 2 | AW169: True | AX169: 0 | AY169: ROZPOCET
D170: VV | F170: -56,25*0,1 "odečet zeminy pro pohumusování | H170: -5.625 | AT170: VV | AU170: 2 | AV170: 2 | AW170: True | AX170: 0 | AY170: ROZPOCET
D171: VV | F171: Součet | H171: 145.565 | AT171: VV | AU171: 2 | AV171: 4 | AW171: True | AX171: 1 | AY171: ROZPOCET
C172: 14 | D172: K | E172: 162700000R | F172: Likvidace přebytečného výkopku z horniny tř.5- 7 podle platné legislativy,položka obsahuje naložení, přemístění,složení a skládkovné | G172: m3 | H172: 95.987 | J172: =ROUND(I172*H172,2) -> 0 | N172: základní | P172: =O172*H172 -> 0 | Q172: 0 | R172: =Q172*H172 -> 0 | S172: 0 | T172: =S172*H172 -> 0 | AR172: 4 | AT172: K | AU172: 2 | AY172: ROZPOCET | BE172: =IF(N172="základní",J172,0) -> 0 | BF172: =IF(N172="snížená",J172,0) -> 0 | BG172: =IF(N172="zákl. přenesená",J172,0) -> 0 | BH172: =IF(N172="sníž. přenesená",J172,0) -> 0 | BI172: =IF(N172="nulová",J172,0) -> 0 | BJ172: 1 | BK172: =ROUND(I172*H172,2) -> 0 | BL172: 4 | BM172: -949185067
D173: PP | F173: Likvidace přebytečného výkopku z horniny tř.1- 4 podle platné legislativy,položka obsahuje naložení, přemístění,složení a skládkovné | AT173: PP | AU173: 2
D174: VV | F174: přebytečný materiál z rozebraného opevnění | AT174: VV | AU174: 2 | AV174: 1 | AW174: True | AX174: 0 | AY174: ROZPOCET
D175: VV | F175: 251,225"rozebrané opevnění | H175: 251.225 | AT175: VV | AU175: 2 | AV175: 2 | AW175: True | AX175: 0 | AY175: ROZPOCET
D176: VV | F176: -61,418 "odečet vytříděného kamene pro opravu dlažeb a patek | H176: -61.418 | AT176: VV | AU176: 2 | AV176: 2 | AW176: True | AX176: 0 | AY176: ROZPOCET
D177: VV | F177: -93,82 "odečet materiálu pro doplnění dna mezi patkami | H177: -93.82 | AT177: VV | AU177: 2 | AV177: 2 | AW177: True | AX177: 0 | AY177: ROZPOCET
D178: VV | F178: Součet | H178: 95.987 | AT178: VV | AU178: 2 | AV178: 4 | AW178: True | AX178: 1 | AY178: ROZPOCET
C179: 17 | D179: K | E179: 167101102 | F179: Nakládání výkopku z hornin tř. 1 až 4 přes 100 m3 | G179: m3 | H179: 83.9 | J179: =ROUND(I179*H179,2) -> 0 | K179: CS ÚRS 2017 01 | N179: základní | P179: =O179*H179 -> 0 | Q179: 0 | R179: =Q179*H179 -> 0 | S179: 0 | T179: =S179*H179 -> 0 | AR179: 4 | AT179: K | AU179: 2 | AY179: ROZPOCET | BE179: =IF(N179="základní",J179,0) -> 0 | BF179: =IF(N179="snížená",J179,0) -> 0 | BG179: =IF(N179="zákl. přenesená",J179,0) -> 0 | BH179: =IF(N179="sníž. přenesená",J179,0) -> 0 | BI179: =IF(N179="nulová",J179,0) -> 0 | BJ179: 1 | BK179: =ROUND(I179*H179,2) -> 0 | BL179: 4 | BM179: 1689450397
D180: PP | F180: Nakládání, skládání a překládání neulehlého výkopku nebo sypaniny nakládání, množství přes 100 m3, z hornin tř. 1 až 4 | AT180: PP | AU180: 2
D181: VV | F181: 83,90 "sedimenty v rostlém stavu, po vysáknutí | H181: 83.9 | AT181: VV | AU181: 2 | AV181: 2 | AW181: True | AX181: 1 | AY181: ROZPOCET
C182: 18 | D182: K | E182: 171101131 | F182: Uložení sypaniny z hornin nesoudržných a soudržných střídavě do násypů zhutněných | G182: m3 | H182: 1 | J182: =ROUND(I182*H182,2) -> 0 | K182: CS ÚRS 2017 01 | N182: základní | P182: =O182*H182 -> 0 | Q182: 0 | R182: =Q182*H182 -> 0 | S182: 0 | T182: =S182*H182 -> 0 | AR182: 4 | AT182: K | AU182: 2 | AY182: ROZPOCET | BE182: =IF(N182="základní",J182,0) -> 0 | BF182: =IF(N182="snížená",J182,0) -> 0 | BG182: =IF(N182="zákl. přenesená",J182,0) -> 0 | BH182: =IF(N182="sníž. přenesená",J182,0) -> 0 | BI182: =IF(N182="nulová",J182,0) -> 0 | BJ182: 1 | BK182: =ROUND(I182*H182,2) -> 0 | BL182: 4 | BM182: 1754364961
D183: PP | F183: Uložení sypaniny do násypů s rozprostřením sypaniny ve vrstvách a s hrubým urovnáním zhutněných s uzavřením povrchu násypu z hornin nesoudržných a soudržných střídavě ukládaných | AT183: PP | AU183: 2
D184: VV | F184: 1,0 "doplnění výmolu v ř. km 0,0550 | H184: 1 | AT184: VV | AU184: 2 | AV184: 2 | AW184: True | AX184: 1 | AY184: ROZPOCET
C185: 19 | D185: K | E185: 171103101 | F185: Zemní hrázky melioračních kanálů z horniny tř. 1 až 4 | G185: m3 | H185: 41 | J185: =ROUND(I185*H185,2) -> 0 | K185: CS ÚRS 2017 01 | N185: základní | P185: =O185*H185 -> 0 | Q185: 0 | R185: =Q185*H185 -> 0 | S185: 0 | T185: =S185*H185 -> 0 | AR185: 4 | AT185: K | AU185: 2 | AY185: ROZPOCET | BE185: =IF(N185="základní",J185,0) -> 0 | BF185: =IF(N185="snížená",J185,0) -> 0 | BG185: =IF(N185="zákl. přenesená",J185,0) -> 0 | BH185: =IF(N185="sníž. přenesená",J185,0) -> 0 | BI185: =IF(N185="nulová",J185,0) -> 0 | BJ185: 1 | BK185: =ROUND(I185*H185,2) -> 0 | BL185: 4 | BM185: -209471999
D186: PP | F186: Zemní hrázky přívodních a odpadních melioračních kanálů zhutňované po vrstvách tloušťky 200 mm, s přemístěním sypaniny do 20 m nebo s jejím přehozením do 3 m z hornin tř. 1 až 4 | AT186: PP | AU186: 2
D187: VV | F187: hrázky - jímky | AT187: VV | AU187: 2 | AV187: 1 | AW187: True | AX187: 0 | AY187: ROZPOCET
D188: VV | F188: 10*(5,0*0,9*0,6+5,0*0,7*0,4) | H188: 41 | AT188: VV | AU188: 2 | AV188: 2 | AW188: True | AX188: 1 | AY188: ROZPOCET
C189: 20 | D189: K | E189: 171201101 | F189: Uložení sypaniny do násypů nezhutněných | G189: m3 | H189: 93.82 | J189: =ROUND(I189*H189,2) -> 0 | K189: CS ÚRS 2017 01 | N189: základní | P189: =O189*H189 -> 0 | Q189: 0 | R189: =Q189*H189 -> 0 | S189: 0 | T189: =S189*H189 -> 0 | AR189: 4 | AT189: K | AU189: 2 | AY189: ROZPOCET | BE189: =IF(N189="základní",J189,0) -> 0 | BF189: =IF(N189="snížená",J189,0) -> 0 | BG189: =IF(N189="zákl. přenesená",J189,0) -> 0 | BH189: =IF(N189="sníž. přenesená",J189,0) -> 0 | BI189: =IF(N189="nulová",J189,0) -> 0 | BJ189: 1 | BK189: =ROUND(I189*H189,2) -> 0 | BL189: 4 | BM189: 2007089204
D190: PP | F190: Uložení sypaniny do násypů s rozprostřením sypaniny ve vrstvách a s hrubým urovnáním nezhutněných z jakýchkoliv hornin | AT190: PP | AU190: 2
D191: VV | F191: uložení rozebr. opev. do dna mezi patkami | AT191: VV | AU191: 2 | AV191: 1 | AW191: True | AX191: 0 | AY191: ROZPOCET
D192: VV | F192: 93,82 "příl. D.1.1.b.2 | H192: 93.82 | AT192: VV | AU192: 2 | AV192: 2 | AW192: True | AX192: 1 | AY192: ROZPOCET
C193: 22 | D193: K | E193: 174201201 | F193: Zásyp jam po pařezech D pařezů do 300 mm | G193: kus | H193: 7 | J193: =ROUND(I193*H193,2) -> 0 | K193: CS ÚRS 2017 01 | N193: základní | P193: =O193*H193 -> 0 | Q193: 0 | R193: =Q193*H193 -> 0 | S193: 0 | T193: =S193*H193 -> 0 | AR193: 4 | AT193: K | AU193: 2 | AY193: ROZPOCET | BE193: =IF(N193="základní",J193,0) -> 0 | BF193: =IF(N193="snížená",J193,0) -> 0 | BG193: =IF(N193="zákl. přenesená",J193,0) -> 0 | BH193: =IF(N193="sníž. přenesená",J193,0) -> 0 | BI193: =IF(N193="nulová",J193,0) -> 0 | BJ193: 1 | BK193: =ROUND(I193*H193,2) -> 0 | BL193: 4 | BM193: 1102592860
D194: PP | F194: Zásyp jam po pařezech výkopkem z horniny získané při dobývání pařezů s hrubým urovnáním povrchu zasypávky průměru pařezu přes 100 do 300 mm | AT194: PP | AU194: 2
D195: VV | F195: 7 "dle pol. odstranění pařezů z podobjektu 1.1 | H195: 7 | AT195: VV | AU195: 2 | AV195: 2 | AW195: True | AX195: 1 | AY195: ROZPOCET
C196: 23 | D196: K | E196: 174201202 | F196: Zásyp jam po pařezech D pařezů do 500 mm | G196: kus | H196: 26 | J196: =ROUND(I196*H196,2) -> 0 | K196: CS ÚRS 2017 01 | N196: základní | P196: =O196*H196 -> 0 | Q196: 0 | R196: =Q196*H196 -> 0 | S196: 0 | T196: =S196*H196 -> 0 | AR196: 4 | AT196: K | AU196: 2 | AY196: ROZPOCET | BE196: =IF(N196="základní",J196,0) -> 0 | BF196: =IF(N196="snížená",J196,0) -> 0 | BG196: =IF(N196="zákl. přenesená",J196,0) -> 0 | BH196: =IF(N196="sníž. přenesená",J196,0) -> 0 | BI196: =IF(N196="nulová",J196,0) -> 0 | BJ196: 1 | BK196: =ROUND(I196*H196,2) -> 0 | BL196: 4 | BM196: -688878865
D197: PP | F197: Zásyp jam po pařezech výkopkem z horniny získané při dobývání pařezů s hrubým urovnáním povrchu zasypávky průměru pařezu přes 300 do 500 mm | AT197: PP | AU197: 2
D198: VV | F198: 26"dle pol. odstranění pařezů z podobjektu 1.1 | H198: 26 | AT198: VV | AU198: 2 | AV198: 2 | AW198: True | AX198: 1 | AY198: ROZPOCET
C199: 24 | D199: K | E199: 175203102 | F199: Přísyp vodních staveb těsnící fólií nebo geotextilií materiálem bez zhutnění sklon svahu přes 1:5 | G199: m3 | H199: 8 | J199: =ROUND(I199*H199,2) -> 0 | K199: CS ÚRS 2017 01 | N199: základní | P199: =O199*H199 -> 0 | Q199: 0 | R199: =Q199*H199 -> 0 | S199: 0 | T199: =S199*H199 -> 0 | AR199: 4 | AT199: K | AU199: 2 | AY199: ROZPOCET | BE199: =IF(N199="základní",J199,0) -> 0 | BF199: =IF(N199="snížená",J199,0) -> 0 | BG199: =IF(N199="zákl. přenesená",J199,0) -> 0 | BH199: =IF(N199="sníž. přenesená",J199,0) -> 0 | BI199: =IF(N199="nulová",J199,0) -> 0 | BJ199: 1 | BK199: =ROUND(I199*H199,2) -> 0 | BL199: 4 | BM199: 1759064100
D200: PP | F200: Přísyp těsnící folie nebo geotextilie na objektech vodních staveb z vhodného materiálu, bez zhutnění ve svahu sklonu přes 1 : 5 | AT200: PP | AU200: 2
D201: VV | F201: 10*(5,0*0,9+5,0*0,7)*0,1 "na hrázky - jímky | H201: 8 | AT201: VV | AU201: 2 | AV201: 2 | AW201: True | AX201: 1 | AY201: ROZPOCET
C202: 25 | D202: K | E202: 181411122 | F202: Založení lučního trávníku výsevem plochy do 1000 m2 ve svahu do 1:2 | G202: m2 | H202: 56.25 | J202: =ROUND(I202*H202,2) -> 0 | K202: CS ÚRS 2017 01 | N202: základní | P202: =O202*H202 -> 0 | Q202: 0 | R202: =Q202*H202 -> 0 | S202: 0 | T202: =S202*H202 -> 0 | AR202: 4 | AT202: K | AU202: 2 | AY202: ROZPOCET | BE202: =IF(N202="základní",J202,0) -> 0 | BF202: =IF(N202="snížená",J202,0) -> 0 | BG202: =IF(N202="zákl. přenesená",J202,0) -> 0 | BH202: =IF(N202="sníž. přenesená",J202,0) -> 0 | BI202: =IF(N202="nulová",J202,0) -> 0 | BJ202: 1 | BK202: =ROUND(I202*H202,2) -> 0 | BL202: 4 | BM202: 509558359
D203: PP | F203: Založení trávníku na půdě předem připravené plochy do 1000 m2 výsevem včetně utažení lučního na svahu přes 1:5 do 1:2 | AT203: PP | AU203: 2
D204: VV | F204: podle Souhrnné technické zprávy | AT204: VV | AU204: 2 | AV204: 1 | AW204: True | AX204: 0 | AY204: ROZPOCET
D205: VV | F205: 51,5*0,9 "na LB u školy | H205: 46.35 | AT205: VV | AU205: 2 | AV205: 2 | AW205: True | AX205: 0 | AY205: ROZPOCET
D206: VV | F206: 11,0*0,9 " na PB u č.p. 19 | H206: 9.9 | AT206: VV | AU206: 2 | AV206: 2 | AW206: True | AX206: 0 | AY206: ROZPOCET
D207: VV | F207: Součet | H207: 56.25 | AT207: VV | AU207: 2 | AV207: 4 | AW207: True | AX207: 1 | AY207: ROZPOCET
C208: 26 | D208: M | E208: 005724700 | F208: osivo směs travní univerzál | G208: kg | H208: 0.844 | J208: =ROUND(I208*H208,2) -> 0 | K208: CS ÚRS 2017 01 | N208: základní | P208: =O208*H208 -> 0 | Q208: 0.001 | R208: =Q208*H208 -> 0.000844 | S208: 0 | T208: =S208*H208 -> 0 | AR208: 8 | AT208: M | AU208: 2 | AY208: ROZPOCET | BE208: =IF(N208="základní",J208,0) -> 0 | BF208: =IF(N208="snížená",J208,0) -> 0 | BG208: =IF(N208="zákl. přenesená",J208,0) -> 0 | BH208: =IF(N208="sníž. přenesená",J208,0) -> 0 | BI208: =IF(N208="nulová",J208,0) -> 0 | BJ208: 1 | BK208: =ROUND(I208*H208,2) -> 0 | BL208: 4 | BM208: -1631160422
D209: PP | F209: osivo směs travní univerzál | AT209: PP | AU209: 2
D210: VV | F210: 56,25*0,015 'Přepočtené koeficientem množství | H210: 0.844 | AT210: VV | AU210: 2 | AV210: 2 | AW210: False | AX210: 1 | AY210: ROZPOCET
C211: 27 | D211: K | E211: 182101101 | F211: Svahování v zářezech v hornině tř. 1 až 4 | G211: m2 | H211: 181.25 | J211: =ROUND(I211*H211,2) -> 0 | K211: CS ÚRS 2017 01 | N211: základní | P211: =O211*H211 -> 0 | Q211: 0 | R211: =Q211*H211 -> 0 | S211: 0 | T211: =S211*H211 -> 0 | AR211: 4 | AT211: K | AU211: 2 | AY211: ROZPOCET | BE211: =IF(N211="základní",J211,0) -> 0 | BF211: =IF(N211="snížená",J211,0) -> 0 | BG211: =IF(N211="zákl. přenesená",J211,0) -> 0 | BH211: =IF(N211="sníž. přenesená",J211,0) -> 0 | BI211: =IF(N211="nulová",J211,0) -> 0 | BJ211: 1 | BK211: =ROUND(I211*H211,2) -> 0 | BL211: 4 | BM211: 377067410
D212: PP | F212: Svahování trvalých svahů do projektovaných profilů s potřebným přemístěním výkopku při svahování v zářezech v hornině tř. 1 až 4 | AT212: PP | AU212: 2
D213: VV | F213: 51,5*2,9 "na LB u školy | H213: 149.35 | AT213: VV | AU213: 2 | AV213: 2 | AW213: True | AX213: 0 | AY213: ROZPOCET
D214: VV | F214: 11,0*2,9 " na PB u č.p. 19 | H214: 31.9 | AT214: VV | AU214: 2 | AV214: 2 | AW214: True | AX214: 0 | AY214: ROZPOCET
D215: VV | F215: Součet | H215: 181.25 | AT215: VV | AU215: 2 | AV215: 4 | AW215: True | AX215: 1 | AY215: ROZPOCET
C216: 28 | D216: K | E216: 182301121 | F216: Rozprostření ornice pl do 500 m2 ve svahu přes 1:5 tl vrstvy do 100 mm | G216: m2 | H216: 56.25 | J216: =ROUND(I216*H216,2) -> 0 | K216: CS ÚRS 2017 01 | N216: základní | P216: =O216*H216 -> 0 | Q216: 0 | R216: =Q216*H216 -> 0 | S216: 0 | T216: =S216*H216 -> 0 | AR216: 4 | AT216: K | AU216: 2 | AY216: ROZPOCET | BE216: =IF(N216="základní",J216,0) -> 0 | BF216: =IF(N216="snížená",J216,0) -> 0 | BG216: =IF(N216="zákl. přenesená",J216,0) -> 0 | BH216: =IF(N216="sníž. přenesená",J216,0) -> 0 | BI216: =IF(N216="nulová",J216,0) -> 0 | BJ216: 1 | BK216: =ROUND(I216*H216,2) -> 0 | BL216: 4 | BM216: 1755794523
D217: PP | F217: Rozprostření a urovnání ornice ve svahu sklonu přes 1:5 při souvislé ploše do 500 m2, tl. vrstvy do 100 mm | AT217: PP | AU217: 2
D218: VV | F218: podle Souhrnné technické zprávy | AT218: VV | AU218: 2 | AV218: 1 | AW218: True | AX218: 0 | AY218: ROZPOCET
D219: VV | F219: 51,5*0,9 "na LB u školy | H219: 46.35 | AT219: VV | AU219: 2 | AV219: 2 | AW219: True | AX219: 0 | AY219: ROZPOCET
D220: VV | F220: 11,0*0,9 " na PB u č.p. 19 | H220: 9.9 | AT220: VV | AU220: 2 | AV220: 2 | AW220: True | AX220: 0 | AY220: ROZPOCET
D221: VV | F221: Součet | H221: 56.25 | AT221: VV | AU221: 2 | AV221: 4 | AW221: True | AX221: 1 | AY221: ROZPOCET
D222: D | E222: 3 | F222: Svislé a kompletní konstrukce | J222: =BK222 -> 0 | P222: =SUM(P223:P251) -> 0 | R222: =SUM(R223:R251) -> 6.8365912 | T222: =SUM(T223:T251) -> 0 | AR222: 1 | AT222: D | AU222: 1 | AY222: ROZPOCET | BK222: =SUM(BK223:BK251) -> 0
C223: 29 | D223: K | E223: 321212345 | F223: Oprava zdiva z lomového kamene vodních staveb do 3 m3 obkladního | G223: m3 | H223: 2.08 | J223: =ROUND(I223*H223,2) -> 0 | K223: CS ÚRS 2017 01 | N223: základní | P223: =O223*H223 -> 0 | Q223: 3.09994 | R223: =Q223*H223 -> 6.4478752 | S223: 0 | T223: =S223*H223 -> 0 | AR223: 4 | AT223: K | AU223: 2 | AY223: ROZPOCET | BE223: =IF(N223="základní",J223,0) -> 0 | BF223: =IF(N223="snížená",J223,0) -> 0 | BG223: =IF(N223="zákl. přenesená",J223,0) -> 0 | BH223: =IF(N223="sníž. přenesená",J223,0) -> 0 | BI223: =IF(N223="nulová",J223,0) -> 0 | BJ223: 1 | BK223: =ROUND(I223*H223,2) -> 0 | BL223: 4 | BM223: -2086376264
D224: PP | F224: Oprava zdiva nadzákladového z lomového kamene vodních staveb přehrad, jezů a plavebních komor, spodní stavby vodních elektráren, jader přehrad, odběrných věží a výpustných zařízení, opěrných zdí, šachet, šachtic a ostatních konstrukcí objemu opravovaných míst do 3 m3 jednotlivě, na maltu cementovou z kamene lomařsky upraveného s vyspárováním cementovou maltou, zdiva obkladního | AT224: PP | AU224: 2
D225: VV | F225: 2*52,0*2,0*0,2*0,05 "doplnění zdí, příl. C. 2 | H225: 2.08 | AT225: VV | AU225: 2 | AV225: 2 | AW225: True | AX225: 1 | AY225: ROZPOCET
C226: 30 | D226: K | E226: 321311115 | F226: Konstrukce vodních staveb z betonu prostého mrazuvzdorného tř. C 25/30 | G226: m3 | H226: 27.24 | J226: =ROUND(I226*H226,2) -> 0 | K226: CS ÚRS 2017 01 | N226: základní | P226: =O226*H226 -> 0 | Q226: 0 | R226: =Q226*H226 -> 0 | S226: 0 | T226: =S226*H226 -> 0 | AR226: 4 | AT226: K | AU226: 2 | AY226: ROZPOCET | BE226: =IF(N226="základní",J226,0) -> 0 | BF226: =IF(N226="snížená",J226,0) -> 0 | BG226: =IF(N226="zákl. přenesená",J226,0) -> 0 | BH226: =IF(N226="sníž. přenesená",J226,0) -> 0 | BI226: =IF(N226="nulová",J226,0) -> 0 | BJ226: 1 | BK226: =ROUND(I226*H226,2) -> 0 | BL226: 4 | BM226: -2031135562
D227: PP | F227: Konstrukce z betonu vodních staveb přehrad, jezů a plavebních komor, spodní stavby vodních elektráren, jader přehrad, odběrných věží a výpustných zařízení, opěrných zdí, šachet, šachtic a ostatních konstrukcí prostého pro prostředí s mrazovými cykly tř. C 25/30 | AT227: PP | AU227: 2
D228: VV | F228: zajišťovací prahy stupňů v km 0,063, 0,089 a 0,108 | AT228: VV | AU228: 2 | AV228: 1 | AW228: True | AX228: 0 | AY228: ROZPOCET
D229: VV | F229: 3*(4,0+2*1,0)*0,6*1,20 | H229: 12.96 | AT229: VV | AU229: 2 | AV229: 2 | AW229: True | AX229: 0 | AY229: ROZPOCET
D230: VV | F230: 3*(4,0+2*1,0)*0,4*1,0 | H230: 7.2 | AT230: VV | AU230: 2 | AV230: 2 | AW230: True | AX230: 0 | AY230: ROZPOCET
D231: VV | F231: zajišťovací prahy stupňě v km 0,166 | AT231: VV | AU231: 2 | AV231: 1 | AW231: True | AX231: 0 | AY231: ROZPOCET
D232: VV | F232: (4,0+2*1,0)*0,6*1,30 | H232: 4.68 | AT232: VV | AU232: 2 | AV232: 2 | AW232: True | AX232: 0 | AY232: ROZPOCET
... 127 more rows

Sheet 1.1 - SO 01.1 Odstranění ...
AT2: {a0745172-2c3b-4224-b4ff-6cdbf39ee0c2}
AT3: 2
D4: KRYCÍ LIST SOUPISU PRACÍ | M4: v --- níže se nacházejí doplnkové a pomocné údaje k sestavám --- v | AT4: False
D6: Stavba:
E7: ='Rekapitulace stavby'!K6 -> Raná, 10185468, Žďárec u Skutče, 0,000 - 0,342, oprava koryta
D8: Objekt:
E9: 1 - SO 01 Oprava koryta
D10: Soupis:
E11: 1.1 - SO 01.1 Odstranění břehových porostů
D13: KSO: | F13: 833 21 29 | I13: CC-CZ:
D14: Místo: | F14: Skuteč - Žďárec u Skutče | I14: Datum: | J14: ='Rekapitulace stavby'!AN8 -> 8.9.2017
D16: Zadavatel: | I16: IČ:
E17: Povodí Labe, závod Pardubice,Cihelna 135,Pardubice | I17: DIČ:
D19: Uchazeč: | I19: IČ: | J19: ='Rekapitulace stavby'!AN13 -> Vyplň údaj
E20: ='Rekapitulace stavby'!E14 -> Vyplň údaj | I20: DIČ: | J20: ='Rekapitulace stavby'!AN14 -> Vyplň údaj
D22: Projektant: | I22: IČ:
E23: Multiaqua s.r.o., Veverkova 1343, Hradec Králové 2 | I23: DIČ:
D25: Zpracovatel: | I25: IČ:
E26: Ing. Ladislav Malý | I26: DIČ:
D28: Poznámka:
E29: Předpokládaná cena projektovaného objektu stavby byla stanovena pomocí položkového rozpočtu z aktuální databáze cenové soustavy od firmy ÚRS Praha, a.s., pomocí programu KROS 4 CÚ 2017 I. Neomezený dálkový přístup k Katalogům ÚRS Praha a.s. naleznete na adrese: http:/www.cs-urs.cz.
D32: Cena bez DPH | J32: =ROUND(J88, 2) -> 0
F34: Základ daně | I34: Sazba daně | J34: Výše daně
D35: DPH | E35: základní | F35: =ROUND((SUM(BE88:BE130)), 2) -> 0 | I35: 0.21 | J35: =ROUND(((SUM(BE88:BE130))*I35), 2) -> 0
E36: snížená | F36: =ROUND((SUM(BF88:BF130)), 2) -> 0 | I36: 0.15 | J36: =ROUND(((SUM(BF88:BF130))*I36), 2) -> 0
E37: zákl. přenesená | F37: =ROUND((SUM(BG88:BG130)), 2) -> 0 | I37: 0.21 | J37: =0 -> 0
E38: sníž. přenesená | F38: =ROUND((SUM(BH88:BH130)), 2) -> 0 | I38: 0.15 | J38: =0 -> 0
E39: nulová | F39: =ROUND((SUM(BI88:BI130)), 2) -> 0 | I39: 0 | J39: =0 -> 0
D41: Cena s DPH | G41: v | H41: CZK | J41: =SUM(J32:J39) -> 0
C47: REKAPITULACE ČLENĚNÍ SOUPISU PRACÍ
C49: Stavba:
E50: =E7 -> Raná, 10185468, Žďárec u Skutče, 0,000 - 0,342, oprava koryta
C51: Objekt:
E52: 1 - SO 01 Oprava koryta
C53: Soupis:
E54: =E11 -> 1.1 - SO 01.1 Odstranění břehových porostů
C56: Místo: | F56: =F14 -> Skuteč - Žďárec u Skutče | I56: Datum: | J56: =IF(J14="","",J14) -> 8.9.2017
C58: Zadavatel: | F58: =E17 -> Povodí Labe, závod Pardubice,Cihelna 135,Pardubice | I58: Projektant: | J58: =E23 -> Multiaqua s.r.o., Veverkova 1343, Hradec Králové 2
C59: Uchazeč: | F59: =IF(E20="","",E20) -> Vyplň údaj | I59: Zpracovatel: | J59: =E26 -> Ing. Ladislav Malý
C61: Kód dílu - Popis | J61: Cena celkem [CZK]
C63: Náklady ze soupisu prací | J63: =J88 -> 0 | AU63: -1
D64: HSV - Práce a dodávky HSV | J64: =J89 -> 0
D65: 1 - Zemní práce | J65: =J90 -> 0
D66: 997 - Přesun sutě | J66: =J126 -> 0
C73: SOUPIS PRACÍ
C75: Stavba:
E76: =E7 -> Raná, 10185468, Žďárec u Skutče, 0,000 - 0,342, oprava koryta
C77: Objekt:
E78: 1 - SO 01 Oprava koryta
C79: Soupis:
E80: =E11 -> 1.1 - SO 01.1 Odstranění břehových porostů
C82: Místo: | F82: =F14 -> Skuteč - Žďárec u Skutče | I82: Datum: | J82: =IF(J14="","",J14) -> 8.9.2017
C84: Zadavatel: | F84: =E17 -> Povodí Labe, závod Pardubice,Cihelna 135,Pardubice | I84: Projektant: | J84: =E23 -> Multiaqua s.r.o., Veverkova 1343, Hradec Králové 2
C85: Uchazeč: | F85: =IF(E20="","",E20) -> Vyplň údaj | I85: Zpracovatel: | J85: =E26 -> Ing. Ladislav Malý
C87: PČ | D87: Typ | E87: Kód | F87: Popis | G87: MJ | H87: Množství | I87: J.cena [CZK] | J87: Cena celkem [CZK] | K87: Cenová soustava | N87: DPH | O87: J. Nh [h] | P87: Nh celkem [h] | Q87: J. hmotnost [t] | R87: Hmotnost celkem [t] | S87: J. suť [t] | T87: Suť Celkem [t]
C88: Náklady soupisu celkem | J88: =BK88 -> 0 | P88: =P89 -> 0 | R88: =R89 -> 0.00165 | T88: =T89 -> 0 | AT88: D | AU88: -1 | BK88: =BK89 -> 0
D89: D | E89: HSV | F89: Práce a dodávky HSV | J89: =BK89 -> 0 | P89: =P90+P126 -> 0 | R89: =R90+R126 -> 0.00165 | T89: =T90+T126 -> 0 | AR89: 1 | AT89: D | AU89: 0 | AY89: ROZPOCET | BK89: =BK90+BK126 -> 0
D90: D | E90: 1 | F90: Zemní práce | J90: =BK90 -> 0 | P90: =SUM(P91:P125) -> 0 | R90: =SUM(R91:R125) -> 0.00165 | T90: =SUM(T91:T125) -> 0 | AR90: 1 | AT90: D | AU90: 1 | AY90: ROZPOCET | BK90: =SUM(BK91:BK125) -> 0
C91: 1 | D91: K | E91: 111103212 | F91: Kosení ve vegetačním období divokého porostu středně hustého | G91: ha | H91: 0.2 | J91: =ROUND(I91*H91,2) -> 0 | K91: CS ÚRS 2017 01 | N91: základní | P91: =O91*H91 -> 0 | Q91: 0 | R91: =Q91*H91 -> 0 | S91: 0 | T91: =S91*H91 -> 0 | AR91: 4 | AT91: K | AU91: 2 | AY91: ROZPOCET | BE91: =IF(N91="základní",J91,0) -> 0 | BF91: =IF(N91="snížená",J91,0) -> 0 | BG91: =IF(N91="zákl. přenesená",J91,0) -> 0 | BH91: =IF(N91="sníž. přenesená",J91,0) -> 0 | BI91: =IF(N91="nulová",J91,0) -> 0 | BJ91: 1 | BK91: =ROUND(I91*H91,2) -> 0 | BL91: 4 | BM91: -1728372692
D92: PP | F92: Kosení s ponecháním na místě ve vegetačním období divokého porostu středně hustého | AT92: PP | AU92: 2
D93: VV | F93: 2000,0*0,0001"dle Souhrnné technické zprávy | H93: 0.2 | AT93: VV | AU93: 2 | AV93: 2 | AW93: True | AX93: 1 | AY93: ROZPOCET
C94: 2 | D94: K | E94: 111251111 | F94: Drcení ořezaných větví D do 100 mm s odvozem do 20 km | G94: m3 | H94: 0.07 | J94: =ROUND(I94*H94,2) -> 0 | K94: CS ÚRS 2017 01 | N94: základní | P94: =O94*H94 -> 0 | Q94: 0 | R94: =Q94*H94 -> 0 | S94: 0 | T94: =S94*H94 -> 0 | AR94: 4 | AT94: K | AU94: 2 | AY94: ROZPOCET | BE94: =IF(N94="základní",J94,0) -> 0 | BF94: =IF(N94="snížená",J94,0) -> 0 | BG94: =IF(N94="zákl. přenesená",J94,0) -> 0 | BH94: =IF(N94="sníž. přenesená",J94,0) -> 0 | BI94: =IF(N94="nulová",J94,0) -> 0 | BJ94: 1 | BK94: =ROUND(I94*H94,2) -> 0 | BL94: 4 | BM94: -2087777387
D95: PP | F95: Drcení ořezaných větví strojně - (štěpkování) o průměru větví do 100 mm | AT95: PP | AU95: 2
D96: VV | F96: 7*0,01"drcení větví stromů | H96: 0.07 | AT96: VV | AU96: 2 | AV96: 2 | AW96: True | AX96: 1 | AY96: ROZPOCET
C97: 3 | D97: K | E97: 112101101 | F97: Kácení stromů listnatých D kmene do 300 mm | G97: kus | H97: 7 | J97: =ROUND(I97*H97,2) -> 0 | K97: CS ÚRS 2017 01 | N97: základní | P97: =O97*H97 -> 0 | Q97: 0 | R97: =Q97*H97 -> 0 | S97: 0 | T97: =S97*H97 -> 0 | AR97: 4 | AT97: K | AU97: 2 | AY97: ROZPOCET | BE97: =IF(N97="základní",J97,0) -> 0 | BF97: =IF(N97="snížená",J97,0) -> 0 | BG97: =IF(N97="zákl. přenesená",J97,0) -> 0 | BH97: =IF(N97="sníž. přenesená",J97,0) -> 0 | BI97: =IF(N97="nulová",J97,0) -> 0 | BJ97: 1 | BK97: =ROUND(I97*H97,2) -> 0 | BL97: 4 | BM97: -704217599
D98: PP | F98: Kácení stromů s odřezáním kmene a s odvětvením listnatých, průměru kmene přes 100 do 300 mm | AT98: PP | AU98: 2
D99: VV | F99: dle souhrnné TZ, kap. B.1, odst.f | AT99: VV | AU99: 2 | AV99: 1 | AW99: True | AX99: 0 | AY99: ROZPOCET
D100: VV | F100: 7 "vrby profil 15 cm na p.č. 1310/1 | H100: 7 | AT100: VV | AU100: 2 | AV100: 2 | AW100: True | AX100: 1 | AY100: ROZPOCET
C101: 4 | D101: K | E101: 112201101 | F101: Odstranění pařezů D do 300 mm | G101: kus | H101: 7 | J101: =ROUND(I101*H101,2) -> 0 | K101: CS ÚRS 2017 01 | N101: základní | P101: =O101*H101 -> 0 | Q101: 5e-05 | R101: =Q101*H101 -> 0.00035 | S101: 0 | T101: =S101*H101 -> 0 | AR101: 4 | AT101: K | AU101: 2 | AY101: ROZPOCET | BE101: =IF(N101="základní",J101,0) -> 0 | BF101: =IF(N101="snížená",J101,0) -> 0 | BG101: =IF(N101="zákl. přenesená",J101,0) -> 0 | BH101: =IF(N101="sníž. přenesená",J101,0) -> 0 | BI101: =IF(N101="nulová",J101,0) -> 0 | BJ101: 1 | BK101: =ROUND(I101*H101,2) -> 0 | BL101: 4 | BM101: 622377398
D102: PP | F102: Odstranění pařezů s jejich vykopáním, vytrháním nebo odstřelením, s přesekáním kořenů průměru přes 100 do 300 mm | AT102: PP | AU102: 2
D103: VV | F103: dle souhrnné TZ, kap. B.1, odst.f | AT103: VV | AU103: 2 | AV103: 1 | AW103: True | AX103: 0 | AY103: ROZPOCET
D104: VV | F104: 7 | H104: 7 | AT104: VV | AU104: 2 | AV104: 2 | AW104: True | AX104: 1 | AY104: ROZPOCET
C105: 5 | D105: K | E105: 112201102 | F105: Odstranění pařezů D do 500 mm | G105: kus | H105: 26 | J105: =ROUND(I105*H105,2) -> 0 | K105: CS ÚRS 2017 01 | N105: základní | P105: =O105*H105 -> 0 | Q105: 5e-05 | R105: =Q105*H105 -> 0.0013 | S105: 0 | T105: =S105*H105 -> 0 | AR105: 4 | AT105: K | AU105: 2 | AY105: ROZPOCET | BE105: =IF(N105="základní",J105,0) -> 0 | BF105: =IF(N105="snížená",J105,0) -> 0 | BG105: =IF(N105="zákl. přenesená",J105,0) -> 0 | BH105: =IF(N105="sníž. přenesená",J105,0) -> 0 | BI105: =IF(N105="nulová",J105,0) -> 0 | BJ105: 1 | BK105: =ROUND(I105*H105,2) -> 0 | BL105: 4 | BM105: -1796675684
D106: PP | F106: Odstranění pařezů s jejich vykopáním, vytrháním nebo odstřelením, s přesekáním kořenů průměru přes 300 do 500 mm | AT106: PP | AU106: 2
D107: VV | F107: 26 "dle souhrnné TZ, kap. B.1, odst.f | H107: 26 | AT107: VV | AU107: 2 | AV107: 2 | AW107: True | AX107: 1 | AY107: ROZPOCET
C108: 6 | D108: K | E108: 162201411 | F108: Vodorovné přemístění kmenů stromů listnatých do 1 km D kmene do 300 mm | G108: kus | H108: 7 | J108: =ROUND(I108*H108,2) -> 0 | K108: CS ÚRS 2017 01 | N108: základní | P108: =O108*H108 -> 0 | Q108: 0 | R108: =Q108*H108 -> 0 | S108: 0 | T108: =S108*H108 -> 0 | AR108: 4 | AT108: K | AU108: 2 | AY108: ROZPOCET | BE108: =IF(N108="základní",J108,0) -> 0 | BF108: =IF(N108="snížená",J108,0) -> 0 | BG108: =IF(N108="zákl. přenesená",J108,0) -> 0 | BH108: =IF(N108="sníž. přenesená",J108,0) -> 0 | BI108: =IF(N108="nulová",J108,0) -> 0 | BJ108: 1 | BK108: =ROUND(I108*H108,2) -> 0 | BL108: 4 | BM108: -1824631472
D109: PP | F109: Vodorovné přemístění větví, kmenů nebo pařezů s naložením, složením a dopravou do 1000 m kmenů stromů listnatých, průměru přes 100 do 300 mm | AT109: PP | AU109: 2
D110: VV | F110: 7 "z pol. kácení stromů list. do 300 mm | H110: 7 | AT110: VV | AU110: 2 | AV110: 2 | AW110: True | AX110: 1 | AY110: ROZPOCET
C111: 7 | D111: K | E111: 162301421 | F111: Vodorovné přemístění pařezů do 5 km D do 300 mm | G111: kus | H111: 7 | J111: =ROUND(I111*H111,2) -> 0 | K111: CS ÚRS 2017 01 | N111: základní | P111: =O111*H111 -> 0 | Q111: 0 | R111: =Q111*H111 -> 0 | S111: 0 | T111: =S111*H111 -> 0 | AR111: 4 | AT111: K | AU111: 2 | AY111: ROZPOCET | BE111: =IF(N111="základní",J111,0) -> 0 | BF111: =IF(N111="snížená",J111,0) -> 0 | BG111: =IF(N111="zákl. přenesená",J111,0) -> 0 | BH111: =IF(N111="sníž. přenesená",J111,0) -> 0 | BI111: =IF(N111="nulová",J111,0) -> 0 | BJ111: 1 | BK111: =ROUND(I111*H111,2) -> 0 | BL111: 4 | BM111: -2076484056
D112: PP | F112: Vodorovné přemístění větví, kmenů nebo pařezů s naložením, složením a dopravou do 5000 m pařezů kmenů, průměru přes 100 do 300 mm | AT112: PP | AU112: 2
D113: VV | F113: 7 "z pol. odstranění pařezů do 300 mm | H113: 7 | AT113: VV | AU113: 2 | AV113: 2 | AW113: True | AX113: 1 | AY113: ROZPOCET
C114: 8 | D114: K | E114: 162301422 | F114: Vodorovné přemístění pařezů do 5 km D do 500 mm | G114: kus | H114: 26 | J114: =ROUND(I114*H114,2) -> 0 | K114: CS ÚRS 2017 01 | N114: základní | P114: =O114*H114 -> 0 | Q114: 0 | R114: =Q114*H114 -> 0 | S114: 0 | T114: =S114*H114 -> 0 | AR114: 4 | AT114: K | AU114: 2 | AY114: ROZPOCET | BE114: =IF(N114="základní",J114,0) -> 0 | BF114: =IF(N114="snížená",J114,0) -> 0 | BG114: =IF(N114="zákl. přenesená",J114,0) -> 0 | BH114: =IF(N114="sníž. přenesená",J114,0) -> 0 | BI114: =IF(N114="nulová",J114,0) -> 0 | BJ114: 1 | BK114: =ROUND(I114*H114,2) -> 0 | BL114: 4 | BM114: 1977360203
D115: PP | F115: Vodorovné přemístění větví, kmenů nebo pařezů s naložením, složením a dopravou do 5000 m pařezů kmenů, průměru přes 300 do 500 mm | AT115: PP | AU115: 2
D116: VV | F116: 26 "z pol. odstranění pařezů do 500 mm | H116: 26 | AT116: VV | AU116: 2 | AV116: 2 | AW116: True | AX116: 1 | AY116: ROZPOCET
C117: 9 | D117: K | E117: 162301921 | F117: Příplatek k vodorovnému přemístění pařezů D 300 mm ZKD 5 km | G117: kus | H117: 21 | J117: =ROUND(I117*H117,2) -> 0 | K117: CS ÚRS 2017 01 | N117: základní | P117: =O117*H117 -> 0 | Q117: 0 | R117: =Q117*H117 -> 0 | S117: 0 | T117: =S117*H117 -> 0 | AR117: 4 | AT117: K | AU117: 2 | AY117: ROZPOCET | BE117: =IF(N117="základní",J117,0) -> 0 | BF117: =IF(N117="snížená",J117,0) -> 0 | BG117: =IF(N117="zákl. přenesená",J117,0) -> 0 | BH117: =IF(N117="sníž. přenesená",J117,0) -> 0 | BI117: =IF(N117="nulová",J117,0) -> 0 | BJ117: 1 | BK117: =ROUND(I117*H117,2) -> 0 | BL117: 4 | BM117: -678720849
D118: PP | F118: Vodorovné přemístění větví, kmenů nebo pařezů s naložením, složením a dopravou Příplatek k cenám za každých dalších i započatých 5000 m přes 5000 m pařezů kmenů, průměru přes 100 do 300 mm | AT118: PP | AU118: 2
D119: VV | F119: 7*3 " 3 příplatky | H119: 21 | AT119: VV | AU119: 2 | AV119: 2 | AW119: True | AX119: 1 | AY119: ROZPOCET
C120: 10 | D120: K | E120: 162301922 | F120: Příplatek k vodorovnému přemístění pařezů D 500 mm ZKD 5 km | G120: kus | H120: 78 | J120: =ROUND(I120*H120,2) -> 0 | K120: CS ÚRS 2017 01 | N120: základní | P120: =O120*H120 -> 0 | Q120: 0 | R120: =Q120*H120 -> 0 | S120: 0 | T120: =S120*H120 -> 0 | AR120: 4 | AT120: K | AU120: 2 | AY120: ROZPOCET | BE120: =IF(N120="základní",J120,0) -> 0 | BF120: =IF(N120="snížená",J120,0) -> 0 | BG120: =IF(N120="zákl. přenesená",J120,0) -> 0 | BH120: =IF(N120="sníž. přenesená",J120,0) -> 0 | BI120: =IF(N120="nulová",J120,0) -> 0 | BJ120: 1 | BK120: =ROUND(I120*H120,2) -> 0 | BL120: 4 | BM120: 1702271872
D121: PP | F121: Vodorovné přemístění větví, kmenů nebo pařezů s naložením, složením a dopravou Příplatek k cenám za každých dalších i započatých 5000 m přes 5000 m pařezů kmenů, průměru přes 300 do 500 mm | AT121: PP | AU121: 2
D122: VV | F122: 26*3 " 3 příplatky | H122: 78 | AT122: VV | AU122: 2 | AV122: 2 | AW122: True | AX122: 1 | AY122: ROZPOCET
C123: 11 | D123: K | E123: 185803101 | F123: Shrabání a uložení pokoseného divokého porostu na hromady do 30 m od okraje hladiny | G123: ha | H123: 0.2 | J123: =ROUND(I123*H123,2) -> 0 | K123: CS ÚRS 2017 01 | N123: základní | P123: =O123*H123 -> 0 | Q123: 0 | R123: =Q123*H123 -> 0 | S123: 0 | T123: =S123*H123 -> 0 | AR123: 4 | AT123: K | AU123: 2 | AY123: ROZPOCET | BE123: =IF(N123="základní",J123,0) -> 0 | BF123: =IF(N123="snížená",J123,0) -> 0 | BG123: =IF(N123="zákl. přenesená",J123,0) -> 0 | BH123: =IF(N123="sníž. přenesená",J123,0) -> 0 | BI123: =IF(N123="nulová",J123,0) -> 0 | BJ123: 1 | BK123: =ROUND(I123*H123,2) -> 0 | BL123: 4 | BM123: 1559243305
D124: PP | F124: Shrabání pokoseného porostu a organických naplavenin a spálení po zaschnutí pokoseného porostu s uložením na hromady na vzdálenost do 30 m od okraje hladiny divokého porostu | AT124: PP | AU124: 2
D125: VV | F125: 2000,0*0,0001" z položky kosení divokého porostu | H125: 0.2 | AT125: VV | AU125: 2 | AV125: 2 | AW125: True | AX125: 1 | AY125: ROZPOCET
D126: D | E126: 997 | F126: Přesun sutě | J126: =BK126 -> 0 | P126: =SUM(P127:P130) -> 0 | R126: =SUM(R127:R130) -> 0 | T126: =SUM(T127:T130) -> 0 | AR126: 1 | AT126: D | AU126: 1 | AY126: ROZPOCET | BK126: =SUM(BK127:BK130) -> 0
C127: 12 | D127: K | E127: 997013811 | F127: Poplatek za uložení stavebního dřevěného odpadu na skládce (skládkovné) | G127: t | H127: 16.225 | J127: =ROUND(I127*H127,2) -> 0 | K127: CS ÚRS 2017 01 | N127: základní | P127: =O127*H127 -> 0 | Q127: 0 | R127: =Q127*H127 -> 0 | S127: 0 | T127: =S127*H127 -> 0 | AR127: 4 | AT127: K | AU127: 2 | AY127: ROZPOCET | BE127: =IF(N127="základní",J127,0) -> 0 | BF127: =IF(N127="snížená",J127,0) -> 0 | BG127: =IF(N127="zákl. přenesená",J127,0) -> 0 | BH127: =IF(N127="sníž. přenesená",J127,0) -> 0 | BI127: =IF(N127="nulová",J127,0) -> 0 | BJ127: 1 | BK127: =ROUND(I127*H127,2) -> 0 | BL127: 4 | BM127: -1715631923
D128: PP | F128: Poplatek za uložení stavebního odpadu na skládce (skládkovné) dřevěného | AT128: PP | AU128: 2
D129: VV | F129: poplatek za uložení pařezů, měrná hmotnost 0,550 t/m3 | AT129: VV | AU129: 2 | AV129: 1 | AW129: True | AX129: 0 | AY129: ROZPOCET
D130: VV | F130: (7*0,5+26*1,0)*0,550 | H130: 16.225 | AT130: VV | AU130: 2 | AV130: 2 | AW130: True | AX130: 1 | AY130: ROZPOCET

Sheet 2 - VON Vedlejší a ostatn...
AT2: {c9a421fb-3f1d-436c-ab4b-3315c966b4a2}
AT3: 2
D4: KRYCÍ LIST SOUPISU PRACÍ | M4: v --- níže se nacházejí doplnkové a pomocné údaje k sestavám --- v | AT4: False
D6: Stavba:
E7: ='Rekapitulace stavby'!K6 -> Raná, 10185468, Žďárec u Skutče, 0,000 - 0,342, oprava koryta
D8: Objekt:
E9: 2 - VON Vedlejší a ostatní náklady
D11: KSO: | F11: 833 21 29 | I11: CC-CZ:
D12: Místo: | F12: Skuteč - Žďárec u Skutče | I12: Datum: | J12: ='Rekapitulace stavby'!AN8 -> 8.9.2017
D14: Zadavatel: | I14: IČ:
E15: Povodí Labe, závod Pardubice,Cihelna 135,Pardubice | I15: DIČ:
D17: Uchazeč: | I17: IČ: | J17: ='Rekapitulace stavby'!AN13 -> Vyplň údaj
E18: ='Rekapitulace stavby'!E14 -> Vyplň údaj | I18: DIČ: | J18: ='Rekapitulace stavby'!AN14 -> Vyplň údaj
D20: Projektant: | I20: IČ:
E21: Multiaqua s.r.o., Veverkova 1343, Hradec Králové 2 | I21: DIČ:
D23: Zpracovatel: | I23: IČ:
E24: Ing. Ladislav Malý | I24: DIČ:
D26: Poznámka:
E27: Předpokládaná cena projektovaného objektu stavby byla stanovena pomocí položkového rozpočtu z aktuální databáze cenové soustavy od firmy ÚRS Praha, a.s., pomocí programu KROS 4 CÚ 2017 I. Neomezený dálkový přístup k Katalogům ÚRS Praha a.s. naleznete na adrese: http:/www.cs-urs.cz.
D30: Cena bez DPH | J30: =ROUND(J89, 2) -> 0
F32: Základ daně | I32: Sazba daně | J32: Výše daně
D33: DPH | E33: základní | F33: =ROUND((SUM(BE89:BE180)), 2) -> 0 | I33: 0.21 | J33: =ROUND(((SUM(BE89:BE180))*I33), 2) -> 0
E34: snížená | F34: =ROUND((SUM(BF89:BF180)), 2) -> 0 | I34: 0.15 | J34: =ROUND(((SUM(BF89:BF180))*I34), 2) -> 0
E35: zákl. přenesená | F35: =ROUND((SUM(BG89:BG180)), 2) -> 0 | I35: 0.21 | J35: =0 -> 0
E36: sníž. přenesená | F36: =ROUND((SUM(BH89:BH180)), 2) -> 0 | I36: 0.15 | J36: =0 -> 0
E37: nulová | F37: =ROUND((SUM(BI89:BI180)), 2) -> 0 | I37: 0 | J37: =0 -> 0
D39: Cena s DPH | G39: v | H39: CZK | J39: =SUM(J30:J37) -> 0
C45: REKAPITULACE ČLENĚNÍ SOUPISU PRACÍ
C47: Stavba:
E48: =E7 -> Raná, 10185468, Žďárec u Skutče, 0,000 - 0,342, oprava koryta
C49: Objekt:
E50: =E9 -> 2 - VON Vedlejší a ostatní náklady
C52: Místo: | F52: =F12 -> Skuteč - Žďárec u Skutče | I52: Datum: | J52: =IF(J12="","",J12) -> 8.9.2017
C54: Zadavatel: | F54: =E15 -> Povodí Labe, závod Pardubice,Cihelna 135,Pardubice | I54: Projektant: | J54: =E21 -> Multiaqua s.r.o., Veverkova 1343, Hradec Králové 2
C55: Uchazeč: | F55: =IF(E18="","",E18) -> Vyplň údaj | I55: Zpracovatel: | J55: =E24 -> Ing. Ladislav Malý
C57: Kód dílu - Popis | J57: Cena celkem [CZK]
C59: Náklady ze soupisu prací | J59: =J89 -> 0 | AU59: -1
D60: HSV - Práce a dodávky HSV | J60: =J90 -> 0
D61: 1 - Zemní práce | J61: =J91 -> 0
D62: 5 - Komunikace pozemní | J62: =J101 -> 0
D63: 9 - Ostatní konstrukce a práce, bourání | J63: =J105 -> 0
D64: 998 - Přesun hmot | J64: =J109 -> 0
D65: VRN - Vedlejší rozpočtové náklady | J65: =J112 -> 0
D66: VRN1 - Vedlejší a ostatní rozpočtové náklady | J66: =J113 -> 0
D67: VRN2 - Projektová dokumentace - ostatní náklady | J67: =J137 -> 0
D68: VRN3 - Geodetické práce a vytýčení - ostatní náklady | J68: =J152 -> 0
D69: VRN9 - Ostatní náklady | J69: =J160 -> 0
C76: SOUPIS PRACÍ
C78: Stavba:
E79: =E7 -> Raná, 10185468, Žďárec u Skutče, 0,000 - 0,342, oprava koryta
C80: Objekt:
E81: =E9 -> 2 - VON Vedlejší a ostatní náklady
C83: Místo: | F83: =F12 -> Skuteč - Žďárec u Skutče | I83: Datum: | J83: =IF(J12="","",J12) -> 8.9.2017
C85: Zadavatel: | F85: =E15 -> Povodí Labe, závod Pardubice,Cihelna 135,Pardubice | I85: Projektant: | J85: =E21 -> Multiaqua s.r.o., Veverkova 1343, Hradec Králové 2
C86: Uchazeč: | F86: =IF(E18="","",E18) -> Vyplň údaj | I86: Zpracovatel: | J86: =E24 -> Ing. Ladislav Malý
C88: PČ | D88: Typ | E88: Kód | F88: Popis | G88: MJ | H88: Množství | I88: J.cena [CZK] | J88: Cena celkem [CZK] | K88: Cenová soustava | N88: DPH | O88: J. Nh [h] | P88: Nh celkem [h] | Q88: J. hmotnost [t] | R88: Hmotnost celkem [t] | S88: J. suť [t] | T88: Suť Celkem [t]
C89: Náklady soupisu celkem | J89: =BK89 -> 0 | P89: =P90+P112 -> 0 | R89: =R90+R112 -> 94.6478 | T89: =T90+T112 -> 150 | AT89: D | AU89: -1 | BK89: =BK90+BK112 -> 0
D90: D | E90: HSV | F90: Práce a dodávky HSV | J90: =BK90 -> 0 | P90: =P91+P101+P105+P109 -> 0 | R90: =R91+R101+R105+R109 -> 94.6478 | T90: =T91+T101+T105+T109 -> 150 | AR90: 1 | AT90: D | AU90: 0 | AY90: ROZPOCET | BK90: =BK91+BK101+BK105+BK109 -> 0
D91: D | E91: 1 | F91: Zemní práce | J91: =BK91 -> 0 | P91: =SUM(P92:P100) -> 0 | R91: =SUM(R92:R100) -> 0.0078 | T91: =SUM(T92:T100) -> 0 | AR91: 1 | AT91: D | AU91: 1 | AY91: ROZPOCET | BK91: =SUM(BK92:BK100) -> 0
C92: 1 | D92: K | E92: 181151311 | F92: Plošná úprava terénu přes 500 m2 zemina tř 1 až 4 nerovnosti do 100 mm v rovinně a svahu do 1:5 | G92: m2 | H92: 520 | J92: =ROUND(I92*H92,2) -> 0 | K92: CS ÚRS 2017 01 | N92: základní | P92: =O92*H92 -> 0 | Q92: 0 | R92: =Q92*H92 -> 0 | S92: 0 | T92: =S92*H92 -> 0 | AR92: 4 | AT92: K | AU92: 2 | AY92: ROZPOCET | BE92: =IF(N92="základní",J92,0) -> 0 | BF92: =IF(N92="snížená",J92,0) -> 0 | BG92: =IF(N92="zákl. přenesená",J92,0) -> 0 | BH92: =IF(N92="sníž. přenesená",J92,0) -> 0 | BI92: =IF(N92="nulová",J92,0) -> 0 | BJ92: 1 | BK92: =ROUND(I92*H92,2) -> 0 | BL92: 4 | BM92: 121694307
D93: PP | F93: Plošná úprava terénu v zemině tř. 1 až 4 s urovnáním povrchu bez doplnění ornice souvislé plochy přes 500 m2 při nerovnostech terénu přes 50 do 100 mm v rovině nebo na svahu do 1:5 | AT93: PP | AU93: 2
D94: VV | F94: 130,0*4,0 "manipulační pruh podél toku (travnaté plochy) | H94: 520 | AT94: VV | AU94: 2 | AV94: 2 | AW94: True | AX94: 1 | AY94: ROZPOCET
C95: 2 | D95: K | E95: 181411121 | F95: Založení lučního trávníku výsevem plochy do 1000 m2 v rovině a ve svahu do 1:5 | G95: m2 | H95: 520 | J95: =ROUND(I95*H95,2) -> 0 | K95: CS ÚRS 2017 01 | N95: základní | P95: =O95*H95 -> 0 | Q95: 0 | R95: =Q95*H95 -> 0 | S95: 0 | T95: =S95*H95 -> 0 | AR95: 4 | AT95: K | AU95: 2 | AY95: ROZPOCET | BE95: =IF(N95="základní",J95,0) -> 0 | BF95: =IF(N95="snížená",J95,0) -> 0 | BG95: =IF(N95="zákl. přenesená",J95,0) -> 0 | BH95: =IF(N95="sníž. přenesená",J95,0) -> 0 | BI95: =IF(N95="nulová",J95,0) -> 0 | BJ95: 1 | BK95: =ROUND(I95*H95,2) -> 0 | BL95: 4 | BM95: -756073608
D96: PP | F96: Založení trávníku na půdě předem připravené plochy do 1000 m2 výsevem včetně utažení lučního v rovině nebo na svahu do 1:5 | AT96: PP | AU96: 2
D97: VV | F97: 130,0*4,0 "manipulační pruh podél toku | H97: 520 | AT97: VV | AU97: 2 | AV97: 2 | AW97: True | AX97: 1 | AY97: ROZPOCET
C98: 3 | D98: M | E98: 005724700 | F98: osivo směs travní univerzál | G98: kg | H98: 7.8 | J98: =ROUND(I98*H98,2) -> 0 | K98: CS ÚRS 2017 01 | N98: základní | P98: =O98*H98 -> 0 | Q98: 0.001 | R98: =Q98*H98 -> 0.0078 | S98: 0 | T98: =S98*H98 -> 0 | AR98: 8 | AT98: M | AU98: 2 | AY98: ROZPOCET | BE98: =IF(N98="základní",J98,0) -> 0 | BF98: =IF(N98="snížená",J98,0) -> 0 | BG98: =IF(N98="zákl. přenesená",J98,0) -> 0 | BH98: =IF(N98="sníž. přenesená",J98,0) -> 0 | BI98: =IF(N98="nulová",J98,0) -> 0 | BJ98: 1 | BK98: =ROUND(I98*H98,2) -> 0 | BL98: 4 | BM98: -1733780499
D99: PP | F99: osivo směs travní univerzál | AT99: PP | AU99: 2
D100: VV | F100: 520*0,015 'Přepočtené koeficientem množství | H100: 7.8 | AT100: VV | AU100: 2 | AV100: 2 | AW100: False | AX100: 1 | AY100: ROZPOCET
D101: D | E101: 5 | F101: Komunikace pozemní | J101: =BK101 -> 0 | P101: =SUM(P102:P104) -> 0 | R101: =SUM(R102:R104) -> 94.64 | T101: =SUM(T102:T104) -> 0 | AR101: 1 | AT101: D | AU101: 1 | AY101: ROZPOCET | BK101: =SUM(BK102:BK104) -> 0
C102: 4 | D102: K | E102: 572212111 | F102: Vyspravení výtluků na krajnicích a komunikacích štěrkopískem | G102: m3 | H102: 56 | J102: =ROUND(I102*H102,2) -> 0 | K102: CS ÚRS 2017 01 | N102: základní | P102: =O102*H102 -> 0 | Q102: 1.69 | R102: =Q102*H102 -> 94.64 | S102: 0 | T102: =S102*H102 -> 0 | AR102: 4 | AT102: K | AU102: 2 | AY102: ROZPOCET | BE102: =IF(N102="základní",J102,0) -> 0 | BF102: =IF(N102="snížená",J102,0) -> 0 | BG102: =IF(N102="zákl. přenesená",J102,0) -> 0 | BH102: =IF(N102="sníž. přenesená",J102,0) -> 0 | BI102: =IF(N102="nulová",J102,0) -> 0 | BJ102: 1 | BK102: =ROUND(I102*H102,2) -> 0 | BL102: 4 | BM102: 433534118
D103: PP | F103: Vyspravení výtluků a propadlých míst na krajnicích a komunikacích s rozprostřením a zhutněním štěrkopískem | AT103: PP | AU103: 2
D104: VV | F104: 140,0*4,0*0,2*0,5 "vyspravení stávajících příj. cest, odhad 50% v tl. 200 mm | H104: 56 | AT104: VV | AU104: 2 | AV104: 2 | AW104: True | AX104: 1 | AY104: ROZPOCET
D105: D | E105: 9 | F105: Ostatní konstrukce a práce, bourání | J105: =BK105 -> 0 | P105: =SUM(P106:P108) -> 0 | R105: =SUM(R106:R108) -> 0 | T105: =SUM(T106:T108) -> 150 | AR105: 1 | AT105: D | AU105: 1 | AY105: ROZPOCET | BK105: =SUM(BK106:BK108) -> 0
C106: 5 | D106: K | E106: 938909311 | F106: Čištění vozovek metením strojně podkladu nebo krytu betonového nebo živičného | G106: m2 | H106: 7500 | J106: =ROUND(I106*H106,2) -> 0 | K106: CS ÚRS 2016 01 | N106: základní | P106: =O106*H106 -> 0 | Q106: 0 | R106: =Q106*H106 -> 0 | S106: 0.02 | T106: =S106*H106 -> 150 | AR106: 4 | AT106: K | AU106: 2 | AY106: ROZPOCET | BE106: =IF(N106="základní",J106,0) -> 0 | BF106: =IF(N106="snížená",J106,0) -> 0 | BG106: =IF(N106="zákl. přenesená",J106,0) -> 0 | BH106: =IF(N106="sníž. přenesená",J106,0) -> 0 | BI106: =IF(N106="nulová",J106,0) -> 0 | BJ106: 1 | BK106: =ROUND(I106*H106,2) -> 0 | BL106: 4 | BM106: 53306135
D107: PP | F107: Čištění vozovek metením strojně podkladu nebo krytu betonového nebo živičného | AT107: PP | AU107: 2
D108: VV | F108: 3*100,0*2,5*20*0,5 " dle potřeby (v závislosti na počasí) | H108: 7500 | AT108: VV | AU108: 2 | AV108: 2 | AW108: True | AX108: 1 | AY108: ROZPOCET
D109: D | E109: 998 | F109: Přesun hmot | J109: =BK109 -> 0 | P109: =SUM(P110:P111) -> 0 | R109: =SUM(R110:R111) -> 0 | T109: =SUM(T110:T111) -> 0 | AR109: 1 | AT109: D | AU109: 1 | AY109: ROZPOCET | BK109: =SUM(BK110:BK111) -> 0
C110: 6 | D110: K | E110: 998225111 | F110: Přesun hmot pro pozemní komunikace s krytem z kamene, monolitickým betonovým nebo živičným | G110: t | H110: 94.648 | J110: =ROUND(I110*H110,2) -> 0 | K110: CS ÚRS 2017 01 | N110: základní | P110: =O110*H110 -> 0 | Q110: 0 | R110: =Q110*H110 -> 0 | S110: 0 | T110: =S110*H110 -> 0 | AR110: 4 | AT110: K | AU110: 2 | AY110: ROZPOCET | BE110: =IF(N110="základní",J110,0) -> 0 | BF110: =IF(N110="snížená",J110,0) -> 0 | BG110: =IF(N110="zákl. přenesená",J110,0) -> 0 | BH110: =IF(N110="sníž. přenesená",J110,0) -> 0 | BI110: =IF(N110="nulová",J110,0) -> 0 | BJ110: 1 | BK110: =ROUND(I110*H110,2) -> 0 | BL110: 4 | BM110: 707245066
D111: PP | F111: Přesun hmot pro komunikace s krytem z kameniva, monolitickým betonovým nebo živičným dopravní vzdálenost do 200 m jakékoliv délky objektu | AT111: PP | AU111: 2
D112: D | E112: VRN | F112: Vedlejší rozpočtové náklady | J112: =BK112 -> 0 | P112: =P113+P137+P152+P160 -> 0 | R112: =R113+R137+R152+R160 -> 0 | T112: =T113+T137+T152+T160 -> 0 | AR112: 5 | AT112: D | AU112: 0 | AY112: ROZPOCET | BK112: =BK113+BK137+BK152+BK160 -> 0
D113: D | E113: VRN1 | F113: Vedlejší a ostatní rozpočtové náklady | J113: =BK113 -> 0 | P113: =SUM(P114:P136) -> 0 | R113: =SUM(R114:R136) -> 0 | T113: =SUM(T114:T136) -> 0 | AR113: 5 | AT113: D | AU113: 1 | AY113: ROZPOCET | BK113: =SUM(BK114:BK136) -> 0
C114: 7 | D114: K | E114: 011 | F114: Zajištění kompletního zařízení staveniště a jeho přípojení na inž. sítě | G114: soubor | H114: 1 | J114: =ROUND(I114*H114,2) -> 0 | N114: základní | P114: =O114*H114 -> 0 | Q114: 0 | R114: =Q114*H114 -> 0 | S114: 0 | T114: =S114*H114 -> 0 | AR114: 1024 | AT114: K | AU114: 2 | AY114: ROZPOCET | BE114: =IF(N114="základní",J114,0) -> 0 | BF114: =IF(N114="snížená",J114,0) -> 0 | BG114: =IF(N114="zákl. přenesená",J114,0) -> 0 | BH114: =IF(N114="sníž. přenesená",J114,0) -> 0 | BI114: =IF(N114="nulová",J114,0) -> 0 | BJ114: 1 | BK114: =ROUND(I114*H114,2) -> 0 | BL114: 1024 | BM114: -34809966
D115: PP | F115: Zajištění kompletního zařízení staveniště a jeho přípojení na inž. sítě | AT115: PP | AU115: 2
D116: VV | F116: Zajištění kompletního zařízení stavenišrě a jeho přípojení na sítě | AT116: VV | AU116: 2 | AV116: 1 | AW116: True | AX116: 0 | AY116: ROZPOCET
D117: VV | F117: zajištění místnosti pro TDI v ZS vč. jejího vybavení | AT117: VV | AU117: 2 | AV117: 1 | AW117: True | AX117: 0 | AY117: ROZPOCET
D118: VV | F118: zajištění ohlášení všech staveb zařízení staveniště dle §104 odst. (2) zákona č. 183/2006 Sb. | AT118: VV | AU118: 2 | AV118: 1 | AW118: True | AX118: 0 | AY118: ROZPOCET
D119: VV | F119: - zajištění místnosti pro TDI v ZS vč. jejího vybavení | AT119: VV | AU119: 2 | AV119: 1 | AW119: True | AX119: 0 | AY119: ROZPOCET
D120: VV | F120: - zajištění ohlášení všech staveb zařízení staveniště dle §104 odst. (2) zákona č. 183/2006 Sb. | AT120: VV | AU120: 2 | AV120: 1 | AW120: True | AX120: 0 | AY120: ROZPOCET
D121: VV | F121: - zajištění oplocení prostoru ZS, jeho napojení na inž. sítě | AT121: VV | AU121: 2 | AV121: 1 | AW121: True | AX121: 0 | AY121: ROZPOCET
D122: VV | F122: - zajištění následné likvidace všech objektů ZS včetně připojení na sítě | AT122: VV | AU122: 2 | AV122: 1 | AW122: True | AX122: 0 | AY122: ROZPOCET
D123: VV | F123: - zajištění ostrahy stavby a staveniště po dobu realizace stavby | AT123: VV | AU123: 2 | AV123: 1 | AW123: True | AX123: 0 | AY123: ROZPOCET
D124: VV | F124: - zajištění podmínek pro použití přístupových komunikací dotčených stavbou s příslušnými vlastníky či správci a zajištění jejich splnění | AT124: VV | AU124: 2 | AV124: 1 | AW124: True | AX124: 0 | AY124: ROZPOCET
D125: VV | F125: - zřízení čisticích zón před výjezdem z obvodu staveniště | AT125: VV | AU125: 2 | AV125: 1 | AW125: True | AX125: 0 | AY125: ROZPOCET
D126: VV | F126: - provedení takových opatření, aby plochy obvodu staveniště nebyly znečištěny ropnými látkami a jinými podobnými produkty | AT126: VV | AU126: 2 | AV126: 1 | AW126: True | AX126: 0 | AY126: ROZPOCET
D127: VV | F127: - provedení takových opatření, aby nebyly překročeny limity prašnosti a hlučnosti dané obecně závaznou vyhláškou | AT127: VV | AU127: 2 | AV127: 1 | AW127: True | AX127: 0 | AY127: ROZPOCET
D128: VV | F128: - zajištění péče o nepředané objekty a konstrukce stavby, jejich ošetřování a zimní opatření | AT128: VV | AU128: 2 | AV128: 1 | AW128: True | AX128: 0 | AY128: ROZPOCET
D129: VV | F129: - zajištění ochrany veškeré zeleně v prostoru staveniště a v jeho bezprostřední blízkosti pro poškození během realizace stavby | AT129: VV | AU129: 2 | AV129: 1 | AW129: True | AX129: 0 | AY129: ROZPOCET
D130: VV | F130: 1 | H130: 1 | AT130: VV | AU130: 2 | AV130: 2 | AW130: True | AX130: 1 | AY130: ROZPOCET
C131: 8 | D131: K | E131: 0112 | F131: Zajištění obnovy asfaltové komunikace | G131: soubor | H131: 1 | J131: =ROUND(I131*H131,2) -> 0 | N131: základní | P131: =O131*H131 -> 0 | Q131: 0 | R131: =Q131*H131 -> 0 | S131: 0 | T131: =S131*H131 -> 0 | AR131: 1024 | AT131: K | AU131: 2 | AY131: ROZPOCET | BE131: =IF(N131="základní",J131,0) -> 0 | BF131: =IF(N131="snížená",J131,0) -> 0 | BG131: =IF(N131="zákl. přenesená",J131,0) -> 0 | BH131: =IF(N131="sníž. přenesená",J131,0) -> 0 | BI131: =IF(N131="nulová",J131,0) -> 0 | BJ131: 1 | BK131: =ROUND(I131*H131,2) -> 0 | BL131: 1024 | BM131: -989207940
D132: PP | F132: Zajištění pasportu a obnovy asfaltové komunikace | AT132: PP | AU132: 2
D133: VV | F133: pasport asf. komunikace, včetně fotodokumentace | AT133: VV | AU133: 2 | AV133: 1 | AW133: True | AX133: 0 | AY133: ROZPOCET
D134: VV | F134: obnova stávající asf. komunikace | AT134: VV | AU134: 2 | AV134: 1 | AW134: True | AX134: 0 | AY134: ROZPOCET
D135: VV | F135: po dokončení stavby protokolární předání majiteli | AT135: VV | AU135: 2 | AV135: 1 | AW135: True | AX135: 0 | AY135: ROZPOCET
D136: VV | F136: 1 | H136: 1 | AT136: VV | AU136: 2 | AV136: 2 | AW136: True | AX136: 1 | AY136: ROZPOCET
D137: D | E137: VRN2 | F137: Projektová dokumentace - ostatní náklady | J137: =BK137 -> 0 | P137: =SUM(P138:P151) -> 0 | R137: =SUM(R138:R151) -> 0 | T137: =SUM(T138:T151) -> 0 | AR137: 5 | AT137: D | AU137: 1 | AY137: ROZPOCET | BK137: =SUM(BK138:BK151) -> 0
C138: 9 | D138: K | E138: 0210 | F138: Vypracování Plánu opatření pro případ havárie | G138: kus | H138: 1 | J138: =ROUND(I138*H138,2) -> 0 | N138: základní | P138: =O138*H138 -> 0 | Q138: 0 | R138: =Q138*H138 -> 0 | S138: 0 | T138: =S138*H138 -> 0 | AR138: 1024 | AT138: K | AU138: 2 | AY138: ROZPOCET | BE138: =IF(N138="základní",J138,0) -> 0 | BF138: =IF(N138="snížená",J138,0) -> 0 | BG138: =IF(N138="zákl. přenesená",J138,0) -> 0 | BH138: =IF(N138="sníž. přenesená",J138,0) -> 0 | BI138: =IF(N138="nulová",J138,0) -> 0 | BJ138: 1 | BK138: =ROUND(I138*H138,2) -> 0 | BL138: 1024 | BM138: 1915777289
D139: PP | F139: Vypracování Plánu opatření pro případ havárie | AT139: PP | AU139: 2
D140: VV | F140: Zhotovitelem vypracovaný plán opatření pro případ úniku závadných látek | AT140: VV | AU140: 2 | AV140: 1 | AW140: True | AX140: 0 | AY140: ROZPOCET
D141: VV | F141: (např. ropné produkty, cementové výluhy, odpadní vody z těsnících clon, atd.) | AT141: VV | AU141: 2 | AV141: 1 | AW141: True | AX141: 0 | AY141: ROZPOCET
D142: VV | F142: 1 | H142: 1 | AT142: VV | AU142: 2 | AV142: 2 | AW142: True | AX142: 1 | AY142: ROZPOCET
C143: 10 | D143: K | E143: 0221 | F143: Zpracování povodňového plánu stavby dle §71 zákona č. 254/2001 Sb. včetně zajištění schválení příslušnými orgány správy a Povodím Labe, státní podnik | G143: kus | H143: 1 | J143: =ROUND(I143*H143,2) -> 0 | N143: základní | P143: =O143*H143 -> 0 | Q143: 0 | R143: =Q143*H143 -> 0 | S143: 0 | T143: =S143*H143 -> 0 | AR143: 1024 | AT143: K | AU143: 2 | AY143: ROZPOCET | BE143: =IF(N143="základní",J143,0) -> 0 | BF143: =IF(N143="snížená",J143,0) -> 0 | BG143: =IF(N143="zákl. přenesená",J143,0) -> 0 | BH143: =IF(N143="sníž. přenesená",J143,0) -> 0 | BI143: =IF(N143="nulová",J143,0) -> 0 | BJ143: 1 | BK143: =ROUND(I143*H143,2) -> 0 | BL143: 1024 | BM143: -1492092902
D144: PP | F144: Zpracování povodňového plánu stavby dle §71 zákona č. 254/2001 Sb. včetně zajištění schválení příslušnými orgány správy a Povodím Labe, státní podnik | AT144: PP | AU144: 2
D145: VV | F145: Zpracování povodňového plánu stavby dle §71 zákona č. 254/2001 Sb. | AT145: VV | AU145: 2 | AV145: 1 | AW145: True | AX145: 0 | AY145: ROZPOCET
D146: VV | F146: včetně zajištění schválení příslušnými orgány správy a Povodím Labe, státní podnik | AT146: VV | AU146: 2 | AV146: 1 | AW146: True | AX146: 0 | AY146: ROZPOCET
D147: VV | F147: 1 | H147: 1 | AT147: VV | AU147: 2 | AV147: 2 | AW147: True | AX147: 1 | AY147: ROZPOCET
C148: 11 | D148: K | E148: 023 | F148: Vypracování projektu skutečného provedení díla | G148: soubor | H148: 1 | J148: =ROUND(I148*H148,2) -> 0 | N148: základní | P148: =O148*H148 -> 0 | Q148: 0 | R148: =Q148*H148 -> 0 | S148: 0 | T148: =S148*H148 -> 0 | AR148: 1024 | AT148: K | AU148: 2 | AY148: ROZPOCET | BE148: =IF(N148="základní",J148,0) -> 0 | BF148: =IF(N148="snížená",J148,0) -> 0 | BG148: =IF(N148="zákl. přenesená",J148,0) -> 0 | BH148: =IF(N148="sníž. přenesená",J148,0) -> 0 | BI148: =IF(N148="nulová",J148,0) -> 0 | BJ148: 1 | BK148: =ROUND(I148*H148,2) -> 0 | BL148: 1024 | BM148: -792427029
D149: PP | F149: Vypracování projektu skutečného provedení díla | AT149: PP | AU149: 2
D150: VV | F150: Vypracování projektu skutečného provedení díla | AT150: VV | AU150: 2 | AV150: 1 | AW150: True | AX150: 0 | AY150: ROZPOCET
D151: VV | F151: 1 | H151: 1 | AT151: VV | AU151: 2 | AV151: 2 | AW151: True | AX151: 1 | AY151: ROZPOCET
D152: D | E152: VRN3 | F152: Geodetické práce a vytýčení - ostatní náklady | J152: =BK152 -> 0 | P152: =SUM(P153:P159) -> 0 | R152: =SUM(R153:R159) -> 0 | T152: =SUM(T153:T159) -> 0 | AR152: 5 | AT152: D | AU152: 1 | AY152: ROZPOCET | BK152: =SUM(BK153:BK159) -> 0
C153: 12 | D153: K | E153: 031 | F153: Vypracování geodetického zaměření skutečného stavu | G153: kus | H153: 1 | J153: =ROUND(I153*H153,2) -> 0 | N153: základní | P153: =O153*H153 -> 0 | Q153: 0 | R153: =Q153*H153 -> 0 | S153: 0 | T153: =S153*H153 -> 0 | AR153: 1024 | AT153: K | AU153: 2 | AY153: ROZPOCET | BE153: =IF(N153="základní",J153,0) -> 0 | BF153: =IF(N153="snížená",J153,0) -> 0 | BG153: =IF(N153="zákl. přenesená",J153,0) -> 0 | BH153: =IF(N153="sníž. přenesená",J153,0) -> 0 | BI153: =IF(N153="nulová",J153,0) -> 0 | BJ153: 1 | BK153: =ROUND(I153*H153,2) -> 0 | BL153: 1024 | BM153: -963983324
D154: PP | F154: Vypracování geodetického zaměření skutečného stavu | AT154: PP | AU154: 2
D155: VV | F155: Vypracování geodetického zaměření skutečného stavu | AT155: VV | AU155: 2 | AV155: 1 | AW155: True | AX155: 0 | AY155: ROZPOCET
D156: VV | F156: 1 | H156: 1 | AT156: VV | AU156: 2 | AV156: 2 | AW156: True | AX156: 1 | AY156: ROZPOCET
C157: 13 | D157: K | E157: 034403000 | F157: Dopravní značeníi | G157: kpl | H157: 1 | J157: =ROUND(I157*H157,2) -> 0 | K157: CS ÚRS 2017 01 | N157: základní | P157: =O157*H157 -> 0 | Q157: 0 | R157: =Q157*H157 -> 0 | S157: 0 | T157: =S157*H157 -> 0 | AR157: 1024 | AT157: K | AU157: 2 | AY157: ROZPOCET | BE157: =IF(N157="základní",J157,0) -> 0 | BF157: =IF(N157="snížená",J157,0) -> 0 | BG157: =IF(N157="zákl. přenesená",J157,0) -> 0 | BH157: =IF(N157="sníž. přenesená",J157,0) -> 0 | BI157: =IF(N157="nulová",J157,0) -> 0 | BJ157: 1 | BK157: =ROUND(I157*H157,2) -> 0 | BL157: 1024 | BM157: -145885267
D158: PP | F158: Zařízení staveniště zabezpečení staveniště dopravní značení na staveništi | AT158: PP | AU158: 2
D159: VV | F159: 1 | H159: 1 | AT159: VV | AU159: 2 | AV159: 2 | AW159: True | AX159: 1 | AY159: ROZPOCET
D160: D | E160: VRN9 | F160: Ostatní náklady | J160: =BK160 -> 0 | P160: =SUM(P161:P180) -> 0 | R160: =SUM(R161:R180) -> 0 | T160: =SUM(T161:T180) -> 0 | AR160: 5 | AT160: D | AU160: 1 | AY160: ROZPOCET | BK160: =SUM(BK161:BK180) -> 0
C161: 14 | D161: K | E161: 0931 | F161: Provedení pasportizace stávajících nemovitostí | G161: kus | H161: 1 | J161: =ROUND(I161*H161,2) -> 0 | N161: základní | P161: =O161*H161 -> 0 | Q161: 0 | R161: =Q161*H161 -> 0 | S161: 0 | T161: =S161*H161 -> 0 | AR161: 1024 | AT161: K | AU161: 2 | AY161: ROZPOCET | BE161: =IF(N161="základní",J161,0) -> 0 | BF161: =IF(N161="snížená",J161,0) -> 0 | BG161: =IF(N161="zákl. přenesená",J161,0) -> 0 | BH161: =IF(N161="sníž. přenesená",J161,0) -> 0 | BI161: =IF(N161="nulová",J161,0) -> 0 | BJ161: 1 | BK161: =ROUND(I161*H161,2) -> 0 | BL161: 1024 | BM161: -655143990
D162: PP | F162: Provedení pasportizace stávajících nemovitostí | AT162: PP | AU162: 2
D163: VV | F163: Provedení pasportizace stávajících nemovitostí (vč. pozemků) a jejich příslušenství, | AT163: VV | AU163: 2 | AV163: 1 | AW163: True | AX163: 0 | AY163: ROZPOCET
D164: VV | F164: zajištění fotodokumentace stávajícího stavu přístupových komunikací | AT164: VV | AU164: 2 | AV164: 1 | AW164: True | AX164: 0 | AY164: ROZPOCET
D165: VV | F165: uvedení do pův. stavu vč. nutného plošného urovnání terénu | AT165: VV | AU165: 2 | AV165: 1 | AW165: True | AX165: 0 | AY165: ROZPOCET
D166: VV | F166: protokolární předání majitelům | AT166: VV | AU166: 2 | AV166: 1 | AW166: True | AX166: 0 | AY166: ROZPOCET
D167: VV | F167: 1 | H167: 1 | AT167: VV | AU167: 2 | AV167: 2 | AW167: True | AX167: 1 | AY167: ROZPOCET
C168: 15 | D168: K | E168: 094 | F168: Zajištění vytýčení veškerých podzemních zařízení | G168: kus | H168: 1 | J168: =ROUND(I168*H168,2) -> 0 | N168: základní | P168: =O168*H168 -> 0 | Q168: 0 | R168: =Q168*H168 -> 0 | S168: 0 | T168: =S168*H168 -> 0 | AR168: 1024 | AT168: K | AU168: 2 | AY168: ROZPOCET | BE168: =IF(N168="základní",J168,0) -> 0 | BF168: =IF(N168="snížená",J168,0) -> 0 | BG168: =IF(N168="zákl. přenesená",J168,0) -> 0 | BH168: =IF(N168="sníž. přenesená",J168,0) -> 0 | BI168: =IF(N168="nulová",J168,0) -> 0 | BJ168: 1 | BK168: =ROUND(I168*H168,2) -> 0 | BL168: 1024 | BM168: -416196141
D169: PP | F169: Zajištění vytýčení veškerých podzemních zařízení | AT169: PP | AU169: 2
D170: VV | F170: Zajištění vytýčení veškerých podzemních zařízení | AT170: VV | AU170: 2 | AV170: 1 | AW170: True | AX170: 0 | AY170: ROZPOCET
D171: VV | F171: 1 | H171: 1 | AT171: VV | AU171: 2 | AV171: 2 | AW171: True | AX171: 1 | AY171: ROZPOCET
C172: 16 | D172: K | E172: 0991 | F172: Zajištění fotodokumentace veškerých konstrukcí, které budou v průběhu stavby skryty nebo zakryty | G172: soubor | H172: 1 | J172: =ROUND(I172*H172,2) -> 0 | N172: základní | P172: =O172*H172 -> 0 | Q172: 0 | R172: =Q172*H172 -> 0 | S172: 0 | T172: =S172*H172 -> 0 | AR172: 1024 | AT172: K | AU172: 2 | AY172: ROZPOCET | BE172: =IF(N172="základní",J172,0) -> 0 | BF172: =IF(N172="snížená",J172,0) -> 0 | BG172: =IF(N172="zákl. přenesená",J172,0) -> 0 | BH172: =IF(N172="sníž. přenesená",J172,0) -> 0 | BI172: =IF(N172="nulová",J172,0) -> 0 | BJ172: 1 | BK172: =ROUND(I172*H172,2) -> 0 | BL172: 1024 | BM172: 33384929
D173: PP | F173: Zajištění fotodokumentace veškerých konstrukcí, které budou v průběhu stavby skryty nebo zakryty | AT173: PP | AU173: 2
D174: VV | F174: Zajištění fotodokumentace veškerých konstrukcí, | AT174: VV | AU174: 2 | AV174: 1 | AW174: True | AX174: 0 | AY174: ROZPOCET
D175: VV | F175: které budou v průběhu stavby skryty nebo zakryty | AT175: VV | AU175: 2 | AV175: 1 | AW175: True | AX175: 0 | AY175: ROZPOCET
D176: VV | F176: 1 | H176: 1 | AT176: VV | AU176: 2 | AV176: 2 | AW176: True | AX176: 1 | AY176: ROZPOCET
C177: 17 | D177: K | E177: 0996 | F177: Zajištění výroby a instalace informačních tabulí ke stavbě | G177: soubor | H177: 1 | J177: =ROUND(I177*H177,2) -> 0 | N177: základní | P177: =O177*H177 -> 0 | Q177: 0 | R177: =Q177*H177 -> 0 | S177: 0 | T177: =S177*H177 -> 0 | AR177: 1024 | AT177: K | AU177: 2 | AY177: ROZPOCET | BE177: =IF(N177="základní",J177,0) -> 0 | BF177: =IF(N177="snížená",J177,0) -> 0 | BG177: =IF(N177="zákl. přenesená",J177,0) -> 0 | BH177: =IF(N177="sníž. přenesená",J177,0) -> 0 | BI177: =IF(N177="nulová",J177,0) -> 0 | BJ177: 1 | BK177: =ROUND(I177*H177,2) -> 0 | BL177: 1024 | BM177: -1324753879
D178: PP | F178: Zajištění výroby a instalace informačních tabulí ke stavbě | AT178: PP | AU178: 2
D179: VV | F179: Zajištění výroby a instalace informačních tabulí ke stavbě | AT179: VV | AU179: 2 | AV179: 1 | AW179: True | AX179: 0 | AY179: ROZPOCET
D180: VV | F180: 1 | H180: 1 | AT180: VV | AU180: 2 | AV180: 2 | AW180: True | AX180: 1 | AY180: ROZPOCET
